Cogmind - Beta 16 @@@ ROGUE MODE // 2025.12.12 @ 20:48:30 Player: JuustuToug Result: Destroyed by H-88 Terminator with KE Penetrator Performance ------------- Evolutions (9) 4500 Regions Visited (32) 6400 Robots Destroyed (346) 1730 Value Destroyed (17045) 17045 Prototype IDs (82) 1640 Alien Tech Used (4) 800 Bonus (18152) 18152 TOTAL SCORE: 50267 Bonus ------- High Alert Combat Kills 2147 Follower Combat Kills 285 Entered Garrisons 200 Entered DSFs 500 Aligned with FarCom 300 Met Data Miner 300 Met Imprinter 300 Acquired ECA 300 Met Warlord at Base 500 MAIN.C Attacked Warlord 500 Warlord Defense Kills 160 Scanned by Researcher 500 Destroyed MAIN.C Guards 500 Met MAIN.C 5000 Destroyed MAIN.C Shell 5000 Met Warlord at Command 2000 Friendly Fire -340 Cogmind --------- Core Integrity 0/1600 Matter 290/300 Energy 85/100 System Corruption 25% Temperature Cool (0) Movement Core (50) Location -1/Command Parts ------- > --- POWER (3) -------- (None) > --- PROPULSION (6) --- (None) > --- UTILITY (13) ----- (None) > --- WEAPON (3) ------- (None) > --- INVENTORY (5) ---- Advanced Point Defense System Terrabomb Enhanced Nova Cannon Enhanced Nova Cannon Peak State ------------ > --- POWER ------------ Particle Reactor Particle Reactor Zero-point Reactor > --- PROPULSION ------- Heavy Treads Advanced Heavy Treads Advanced Heavy Siege Treads > --- UTILITY ---------- Experimental Cooling System Experimental Cooling System High-capacity Storage Unit Long-range Sensor Array Advanced Signal Interpreter Core Analyzer Advanced Weapon Cycler Advanced Phase Shifter SHELL Armor Advanced EM Disruption Field Phase Redirector > --- WEAPON ----------- Nova Cannon Enhanced Nova Cannon Enhanced Nova Cannon > --- INVENTORY -------- Mini Fusion Reactor Heavy Treads Improved Heavy Treads Biometal Medium Treads Biometal Medium Treads Advanced Power Amplifier Advanced Heat Sink Advanced Cooling System Long-range Sensor Array Advanced Thermal Shield Advanced Force Field Advanced Point Defense System Terrabomb Terrabomb Nova Cannon Nova Cannon Enhanced Nova Cannon Hellfire Missile Launcher [Rating: 215] Favorites ----------- Power Particle Reactor Engine Improved Deuterium Engine Power Core Light Nuclear Core Reactor Particle Reactor Propulsion Light Treads Treads Light Treads Leg Myomer Exoskeleton Utility High-capacity Storage Unit Device Improved Cooling System Storage High-capacity Storage Unit Processor Core Analyzer Hackware Hacking Suite Protection Improved Medium Armor Plating Artifact Phase Redirector Weapon Ion Cannon Energy Gun Plasma Rifle Energy Cannon Ion Cannon Ballistic Gun Assault Rifle Ballistic Cannon AWS/Autocannon Launcher Enhanced Gamma Bomb Array Special Weapon Welding Torch Impact Weapon Core Stripper Slashing Weapon Master Tearclaws Piercing Weapon Vortex Lance Build | -11 -10 -10 -9 -9 -9 -8 -8 -8 -8 -7 -7 -7 -7 -6 -6 -6 -6 -6 -5 -5 -5 -5 -5 -4 -4 -4 -3 -3 -2 -2 -1 -1 ------- Run | Yrd Mat Min Mat Min Exi Min Mat Gar Mat Fac Low Low Zio Pro Fac Low Low Dat Pro Fac Upp Upp War Pro Fac DSF Res Qua Res Tes Acc Com Slots Evolved 18 | . . . 2 . . . 2 . . 2 . . . . 2 . . . . 2 . . . . 2 . 2 . 2 . 2 . Power 2 | . . . . . . . . . . . . . . . . . . . . 1 . . . . . . . . . . 1 . Propulsion 4 | . . . 1 . . . 1 . . . . . . . . . . . . . . . . . . . 2 . . . . . Utility 11 | . . . 1 . . . . . . 2 . . . . 2 . . . . 1 . . . . 2 . . . 2 . 1 . Weapon 1 | . . . . . . . 1 . . . . . . . . . . . . . . . . . . . . . . . . . Parts Attached 274 | 7 6 2 27 2 2 . 4 8 12 7 3 8 8 3 18 1 5 . 1 2 3 2 15 5 2 18 22 12 17 15 22 15 Power 35 | 1 2 . 5 1 1 . . 1 . 2 . . . 2 2 . . . . 1 . . 1 . . 2 3 1 3 3 2 2 Engine 14 | 1 2 . 4 . 1 . . 1 . 2 . . . 1 1 . . . . 1 . . . . . . . . . . . . Core 4 | . . . 1 1 . . . . . . . . . 1 1 . . . . . . . . . . . . . . . . . Reactor 17 | . . . . . . . . . . . . . . . . . . . . . . . 1 . . 2 3 1 3 3 2 2 Propulsion 67 | 2 . . 9 . 1 . 1 2 9 2 1 2 . . 2 . 4 . . 1 2 . . 2 . 6 6 1 3 3 2 6 Treads 65 | 2 . . 9 . 1 . 1 2 9 2 1 2 . . 2 . 4 . . 1 2 . . 2 . 6 6 1 3 1 2 6 Leg 2 | . . . . . . . . . . . . . . . . . . . . . . . . . . . . . . 2 . . Wheel . | . . . . . . . . . . . . . . . . . . . . . . . . . . . . . . . . . Hover . | . . . . . . . . . . . . . . . . . . . . . . . . . . . . . . . . . Flight . | . . . . . . . . . . . . . . . . . . . . . . . . . . . . . . . . . Utility 114 | 2 1 2 6 1 . . . 1 2 3 1 5 5 1 8 1 1 . 1 . 1 2 10 3 1 6 12 6 10 4 13 5 Device 65 | 1 . 2 2 1 . . . 1 1 1 . 2 . 1 5 1 . . . . 1 . 4 2 1 4 7 3 8 2 11 4 Storage 6 | 1 1 . 2 . . . . . . . . . . . 1 . . . . . . . . . . . 1 . . . . . Processor 19 | . . . 1 . . . . . . . 1 1 5 . . . . . . . . . 1 1 . . 3 2 2 . 1 1 Hackware 5 | . . . 1 . . . . . 1 1 . . . . . . . . . . . . . . . 1 1 . . . . . Protection 18 | . . . . . . . . . . 1 . 2 . . 2 . 1 . 1 . . 2 5 . . 1 . . . 2 1 . Artifact 1 | . . . . . . . . . . . . . . . . . . . . . . . . . . . . 1 . . . . Weapon 58 | 2 3 . 7 . . . 3 4 1 . 1 1 3 . 6 . . . . . . . 4 . 1 4 1 4 1 5 5 2 Energy Gun 9 | . 1 . 1 . . . . . . . . . . . 3 . . . . . . . 2 . 1 1 . . . . . . Energy Cannon 29 | . 1 . 3 . . . 1 2 1 . 1 . 1 . 2 . . . . . . . 1 . . 3 1 3 1 3 3 2 Ballistic Gun 7 | 2 . . 2 . . . 1 1 . . . . . . . . . . . . . . . . . . . . . 1 . . Ballistic Cannon 1 | . . . . . . . 1 . . . . . . . . . . . . . . . . . . . . . . . . . Launcher 7 | . . . 1 . . . . 1 . . . . 1 . 1 . . . . . . . . . . . . . . 1 2 . Special Weapon 2 | . 1 . . . . . . . . . . . 1 . . . . . . . . . . . . . . . . . . . Impact Weapon 1 | . . . . . . . . . . . . . . . . . . . . . . . . . . . . 1 . . . . Slashing Weapon 1 | . . . . . . . . . . . . 1 . . . . . . . . . . . . . . . . . . . . Piercing Weapon 1 | . . . . . . . . . . . . . . . . . . . . . . . 1 . . . . . . . . . Special Melee Weapon . | . . . . . . . . . . . . . . . . . . . . . . . . . . . . . . . . . Unidentified Prototypes 46 | . . 1 3 . . . 1 . 1 . . 1 7 . 5 . . . . . . . 8 . . . . 4 4 8 2 1 Corrupted Parts 3 | . . . . . . . . . . . . . . 2 . . . . . . . . . . . . . . . . 1 . System Corruption 12 | . . . . . . . . . . . . . . 9 . . . . . . . . . . . . . . . . 3 . Parts Lost 68 | . . 1 1 . . . . . 1 . . 2 . 2 1 . . . 1 3 . 5 4 2 . 12 5 . . 1 4 23 Power 8 | . . . . . . . . . . . . . . 1 . . . . . 1 . 1 . . . 1 . . . . . 4 Propulsion 13 | . . . 1 . . . . . . . . 1 . 1 1 . . . . 1 . . 1 . . . . . . . . 7 Utility 34 | . . 1 . . . . . . . . . . . . . . . . 1 . . 3 3 1 . 8 4 . . . 4 9 Weapon 13 | . . . . . . . . . 1 . . 1 . . . . . . . 1 . 1 . 1 . 3 1 . . 1 . 3 Highest Loss Streak 19 | . . 1 1 . . . . . 1 . . 1 . 1 1 . . . 1 3 . 5 3 1 . 7 1 . . 1 1 19 To Critical Strikes . | . . . . . . . . . . . . . . . . . . . . . . . . . . . . . . . . . Average Backups 15 | 1 6 9 12 15 12 12 12 13 13 13 14 13 14 14 16 20 20 20 19 18 19 18 18 17 18 14 16 17 17 17 17 16 Power 1 | . . 1 . 1 . . . . . . 1 1 1 . 1 1 1 1 1 1 . . . 2 2 1 2 2 2 2 . 1 Propulsion 3 | . . 1 3 5 4 4 3 4 4 4 3 3 1 1 1 3 3 3 3 3 4 5 4 3 5 5 6 6 5 3 4 4 Utility 5 | . 1 2 1 1 1 1 2 4 5 4 4 4 8 9 9 9 9 9 8 7 8 8 6 6 6 2 . 4 3 6 5 2 Weapon 5 | . 3 5 6 8 7 7 6 5 4 4 4 4 3 3 4 7 7 7 7 6 6 5 6 6 5 5 6 3 4 3 4 5 Tool/Special . | . . . . . . . . . . . . . . . . . . . . . . . . . . . . . . . . . Unused Backups 69 | . 3 2 13 . 3 . 2 2 5 2 2 2 1 . 3 . 1 . . . . 2 6 . 1 3 4 4 3 2 1 2 Power 7 | . . . 2 . . . . . . . . . . . 1 . . . . . . . . . 1 . 1 1 . . 1 . Propulsion 10 | . . . 2 . . . . . 4 . . . . . . . . . . . . . . . . 3 . . 1 . . . Utility 18 | . . . 1 . . . 1 2 1 1 1 1 1 . 2 . . . . . . 2 2 . . . 1 . 1 1 . . Weapon 32 | . 3 2 8 . 3 . 1 . . 1 1 . . . . . 1 . . . . . 4 . . . 2 3 1 1 . 1 Tool/Special 2 | . . . . . . . . . . . . 1 . . . . . . . . . . . . . . . . . . . 1 Average Slot Usage (%) 92 | . 99 99 98 100 100 100 90 98 100 99 99 99 99 100 99 100 100 82 100 94 95 88 85 91 83 81 82 84 85 78 79 76 Engine 5 | . 14 14 9 7 8 11 9 9 9 7 7 7 7 7 4 6 6 6 6 5 11 9 4 . . . . . . . . . Reactor 3 | . . . . . . . . . . . . . . . . . . . . . . . 2 5 5 6 9 9 8 7 11 11 Treads 23 | . 27 28 32 33 33 33 35 36 36 30 30 30 30 30 26 26 26 26 26 23 18 17 17 21 15 15 14 13 13 12 12 11 Device 14 | . 14 13 10 11 11 11 9 9 9 10 6 1 . 7 12 13 11 13 11 14 16 18 16 16 20 16 20 24 29 19 24 22 Storage 6 | . 14 14 11 11 11 11 9 9 9 7 7 7 6 7 6 6 6 6 6 5 5 5 4 5 5 5 4 4 4 4 4 3 Processor 9 | . . . 7 . . . . . . . 6 7 19 23 20 20 20 20 20 17 17 11 2 8 10 10 11 14 13 12 9 11 Hackware 3 | . . . 3 11 11 11 9 9 9 14 15 15 5 . . . . . . . . . . . . . 4 . . . . . Protection 4 | . . . . . . . . . . 4 . 5 4 . 5 6 7 6 7 7 5 6 15 13 10 10 1 . . 3 4 3 Energy Gun 2 | . 7 . . . . . . . . . . . . . 5 6 6 . 5 5 5 5 5 9 9 5 . . . . . . Energy Cannon 13 | . 2 14 11 11 11 11 9 16 18 22 22 22 22 23 13 13 12 1 13 11 11 10 10 3 4 9 13 13 13 13 11 10 Ballistic Gun 2 | . 17 14 10 11 11 11 4 7 9 . . . . . . . . . . . . . . . . . . . . . . . Peak Build Rating 215 | 7 8 16 20 23 26 26 49 49 40 52 53 49 68 64 80 80 82 78 79 90 96 94 147 103 107 133 142 170 188 208 215 210 Average Rating 89 | 5 7 8 15 20 23 26 39 30 35 48 50 45 58 62 75 78 79 66 77 86 93 84 86 95 104 117 135 153 177 196 207 194 On Entrance 75 | . 7 8 8 20 23 26 26 49 30 40 48 51 46 65 63 79 79 78 78 77 90 94 69 101 97 105 127 142 159 188 197 206 Avg Prop Armor Cover (%) 42 | . . . . . . . . . . . . . . . . . . . . . . . . . . . . . . . . 42 Naked Turns 4 | . . . . . . . . . . . . . . . . . . . . . . . . . . . . . . . . 4 Heaviest Build 196 | 15 19 19 37 37 37 37 88 88 46 57 58 56 57 51 80 83 92 80 95 99 99 91 137 120 111 141 131 149 156 168 196 170 Greatest Support 225 | 40 40 40 63 63 63 63 83 83 88 92 92 94 92 92 96 94 94 90 90 97 117 117 127 113 113 150 225 225 220 220 220 195 Greatest Overweight (x) 4 | . . . . . . . 1 1 . . . . . . . . . . 1 1 . . 1 1 . 4 . . . 2 . 1 Average Overweight (x) . | . . . . . . . . . . . . . . . . . . . . . . . . . . . . . . . . . Largest Inventory Capacity 20 | 8 10 10 15 15 15 15 15 15 15 15 15 15 15 15 20 20 20 20 20 20 20 20 20 20 20 20 20 20 20 20 20 20 Average Capacity 17 | 6 8 10 12 15 15 15 15 15 15 15 15 15 14 15 17 20 20 20 20 20 20 20 19 20 20 20 20 20 20 20 20 19 Most Carried 20 | 2 10 10 15 15 15 15 15 15 15 15 15 15 15 15 20 20 20 20 20 20 20 20 20 20 20 20 20 20 20 20 20 20 Average Carried 16 | 1 6 9 12 15 13 15 14 14 14 14 14 14 14 14 16 20 19 20 19 19 19 18 18 17 18 17 17 19 19 19 19 18 Final Capacity 20 | 8 10 10 15 15 15 15 15 15 15 15 15 15 15 15 20 20 20 20 20 20 20 20 20 20 20 20 20 20 20 20 20 5 Final Carried 20 | 2 10 10 15 15 15 15 15 15 15 15 15 15 15 15 20 20 20 20 19 17 20 16 17 20 18 19 20 20 20 20 20 4 Class Distribution -------------------- 18% | Skirmisher 14% | Scavenger-Tank 12% | Tank 9% | Scavenger-Skirmisher 9% | Mutant 9% | Scavenger-Mutant 6% | Scavenger-Gunner 6% | Hacker-Tank 4% | Gunner 4% | Hacker-Skirmisher Dominant Class ---------------- Mutant | -10/Materials Mutant | -10/Mines Scavenger-Mutant | -9/Materials Scavenger-Mutant | -9/Mines Scavenger-Mutant | -9/Exiles Scavenger-Mutant | -8/Mines Scavenger-Skirmisher | -8/Materials Scavenger-Skirmisher | -8/Garrison Scavenger-Skirmisher | -8/Materials Hacker-Tank | -7/Factory Hacker-Skirmisher | -7/Lower Caves Hacker-Tank | -7/Lower Caves Tank | -7/Zion Gunner | -6/Proximity Caves Skirmisher | -6/Factory Skirmisher | -6/Lower Caves Skirmisher | -6/Lower Caves Mutant | -6/Data Miner Skirmisher | -5/Proximity Caves Skirmisher | -5/Factory Skirmisher | -5/Upper Caves Skirmisher | -5/Upper Caves Tank | -5/Warlord Scavenger-Tank | -4/Proximity Caves Derelict-Tank | -4/Factory Tank | -4/DSF Scavenger-Tank | -3/Research Tank | -3/Quarantine Scavenger-Tank | -2/Research Scavenger-Tank | -2/Testing Scavenger-Tank | -1/Access Scavenger-Skirmisher | -1/Command Resources | -11 -10 -10 -9 -9 -9 -8 -8 -8 -8 -7 -7 -7 -7 -6 -6 -6 -6 -6 -5 -5 -5 -5 -5 -4 -4 -4 -3 -3 -2 -2 -1 -1 ----------- Run | Yrd Mat Min Mat Min Exi Min Mat Gar Mat Fac Low Low Zio Pro Fac Low Low Dat Pro Fac Upp Upp War Pro Fac DSF Res Qua Res Tes Acc Com Matter Collected 7030 | 275 351 64 727 32 . 23 57 393 169 167 220 269 10 145 228 187 488 . 138 136 130 122 303 179 . 260 299 311 205 347 480 315 Remotely . | . . . . . . . . . . . . . . . . . . . . . . . . . . . . . . . . . Salvage Created 17948 | 30 447 107 1480 107 . 57 55 765 278 651 336 769 . 368 271 50 178 . 161 793 223 286 40 722 . 798 2093 1252 272 2883 2277 199 Parts 858 | 3 39 8 95 9 . 3 5 44 14 34 24 26 . 12 22 1 17 . 5 27 2 9 . 16 . 32 95 79 3 123 101 10 Haulers Intercepted 10 | . 2 . 5 . . . . . . . . 1 . . . . . . . . . . . . . . 1 . . . 1 . Recyclers Shooed 11 | 1 1 . 4 . . . . . 1 . . . . . 1 . . . . 1 . . . . . . 1 . . 1 . . Parts Field Recycled . | . . . . . . . . . . . . . . . . . . . . . . . . . . . . . . . . . Retrieved Matter . | . . . . . . . . . . . . . . . . . . . . . . . . . . . . . . . . . Parts Self-Destructed 75 | . . . . . . . . . . . 6 27 . 12 . . 5 . 4 . 1 4 . 16 . . . . . . . . Prevented 4 | . . . . . . . . . . . . . . 4 . . . . . . . . . . . . . . . . . . Parts Restored . | . . . . . . . . . . . . . . . . . . . . . . . . . . . . . . . . . Kills | -11 -10 -10 -9 -9 -9 -8 -8 -8 -8 -7 -7 -7 -7 -6 -6 -6 -6 -6 -5 -5 -5 -5 -5 -4 -4 -4 -3 -3 -2 -2 -1 -1 ------- Run | Yrd Mat Min Mat Min Exi Min Mat Gar Mat Fac Low Low Zio Pro Fac Low Low Dat Pro Fac Upp Upp War Pro Fac DSF Res Qua Res Tes Acc Com Combat Hostiles Destroyed 270 | . 11 3 28 2 . . 1 29 4 10 9 11 . 6 7 . 13 . 3 10 1 3 1 10 . 8 22 16 3 29 27 3 Melee 8 | . . . . . . . . . . . . . . . . . . . . . . . 1 7 . . . . . . . . Guns 34 | . 11 2 4 1 . . . 3 2 . . . . . . . . . . 1 . 2 . 2 . 6 . . . . . . Cannons 149 | . . 1 14 1 . . 1 11 2 8 2 10 . 4 3 . 1 . 1 4 1 . . 1 . 2 18 13 3 25 20 3 AOE 55 | . . . 10 . . . . 15 . . 7 1 . . 4 . 11 . 2 1 . 1 . . . . . . . . 3 . Classes Destroyed 26 | 1 7 . 2 . . . . 3 1 2 1 2 . 1 . . 1 . . . . 1 . 1 . 1 . . . 1 1 . Worker 20 | . 1 . 5 . . . . . 1 2 . . . . 1 . . . . 4 . . . . . . 2 2 . 1 1 . Builder 8 | . 1 . 1 . . . . . . . . . . . . . . . . 2 . . . . . . 1 . . . 3 . Tunneler 2 | 1 . . 1 . . . . . . . . . . . . . . . . . . . . . . . . . . . . . Hauler 10 | . 2 . 5 . . . . . . . . 1 . . . . . . . . . . . . . . 1 . . . 1 . Recycler 13 | . 1 . 3 . . 1 . . . 1 . . . . . . . . . 1 . . . . . . 2 . . 3 1 . Minesweeper 1 | . . . . . . . . . . . . 1 . . . . . . . . . . . . . . . . . . . . Mechanic 4 | . . . . . . . . . 1 . . . . . . . . . . . . . . . . . . . . 2 1 . Operator 5 | . . . . . . . . . . 1 . . . . 1 . . . . . . . . . . . 2 1 . . . . Drone 1 | . . . . . . . . . . . . . . . . . . . . . . . . 1 . . . . . . . . Watcher 8 | . 2 . 2 . . . . . . . . . . . . . . . . . . . . . . . 1 1 1 . 1 . Swarmer 47 | . 9 1 8 . . . . 10 . . 3 . . 2 4 . 7 . 1 . . . . . . . . . . 2 . . Saboteur 3 | . . . . . . . . 3 . . . . . . . . . . . . . . . . . . . . . . . . Grunt 79 | . 2 2 11 2 . . . 8 . 5 4 9 . 2 . . 4 . 1 4 . . . 3 . . 4 3 . 13 2 . Brawler 7 | . . . . . . . . . . . . 1 . 1 . . . . . 1 . . . 2 . . 1 . . . . 1 Duelist 6 | . . . 2 . . . . . . . . . . . . . . . . 1 . . . 2 . . . . . . . 1 Researcher 2 | . . . . . . . . . . . . . . . . . . . . . . . . . . . . . . 2 . . Sentry 30 | . . . 7 . . . 1 4 4 2 . . . . 3 . . . 1 . 1 . . 1 . 1 . 1 2 . 2 . Specialist 4 | . . . . . . . . 2 . . . . . . . . . . . . . . . . . 2 . . . . . . Hunter 35 | . . . . . . . . 2 . . . . . 1 . . . . . . . . . 2 . 4 9 4 . 5 8 . Programmer 44 | . . . . . . . . . . 3 . . . . . . 1 . . 4 . . 1 . . . 8 8 . 9 9 1 Heavy 3 | . . . . . . . . . . . . . . . . . . . . . . . . . . 1 . . . . 2 . Q-Series 4 | . . . . . . . . . . . . . . . . . . . . . . . . . . . . . . . 4 . Behemoth 2 | . . . . . . . . . . . . . . . . . . . . . . 1 . . . . . . 1 . . . Decomposer 13 | . . . . . . . . . . . 6 . . . . 3 . . 2 . . 2 . . . . . . . . . . Master Thief 5 | . . . . . . . . . . . 2 1 . . . . . . . . . 2 . . . . . . . . . . Savage 1 | . . . . . . . . . . . . 1 . . . . . . . . . . . . . . . . . . . . Fireman 1 | . . . . . . . . . . . . . . 1 . . . . . . . . . . . . . . . . . . Mutant 1 | . . . . . . . . . . . . . . . . . 1 . . . . . . . . . . . . . . . Best Kill Streak 13 | 1 3 2 10 2 . 1 1 6 2 2 7 5 . 2 4 . 5 . 3 13 1 2 1 5 . 5 7 7 2 9 8 2 Combat Bots Only 7 | . 3 2 7 2 . . 1 6 2 2 7 5 . 2 4 . 5 . 3 7 1 2 1 5 . 5 5 5 1 7 5 2 Max Kills in Single Turn 4 | 1 2 1 4 1 . 1 1 3 1 1 3 1 . 1 3 1 1 . 2 3 1 1 1 1 . 1 2 2 2 2 3 2 Gunslinging 1 | . 1 . . . . . . . . . . . . . . . . . . . . . . . . . . . . . . . Exploded 3 | . . . 3 . . . . 3 . . 3 1 . . 3 . 1 . 2 1 . 1 . . . . . . . . 2 . Melee 1 | . . . . . . . . . . . . . . . . . . . . . . . 1 1 . . . . . . . . Uniques/NPCs Destroyed . | . . . . . . . . . . . . . . . . . . . . . . . . . . . . . . . . . Combat | -11 -10 -10 -9 -9 -9 -8 -8 -8 -8 -7 -7 -7 -7 -6 -6 -6 -6 -6 -5 -5 -5 -5 -5 -4 -4 -4 -3 -3 -2 -2 -1 -1 -------- Run | Yrd Mat Min Mat Min Exi Min Mat Gar Mat Fac Low Low Zio Pro Fac Low Low Dat Pro Fac Upp Upp War Pro Fac DSF Res Qua Res Tes Acc Com Hostile Shots Fired 2327 | . 52 35 108 7 . . 2 52 14 86 29 54 . 27 47 . 69 . 63 37 6 29 84 60 . 251 237 95 5 350 216 312 Missed 653 | . 14 9 26 2 . . . 9 2 34 5 17 . 13 20 . 23 . 22 12 2 4 24 26 . 63 74 25 1 82 61 83 Intercepted 7 | . . . . . . . . . . . . . . . . . . . . . . . . . . . . . . . . 7 Hits 1674 | . 38 26 82 5 . . 2 43 12 52 24 37 . 14 27 . 46 . 41 25 4 25 60 34 . 188 163 70 4 268 155 229 Melee 42 | . . . 2 . . . . . . . 3 4 . . . . . . . 2 . 6 13 5 . . 1 . . . . 6 Projectile 1632 | . 38 26 80 5 . . 2 43 12 52 21 33 . 14 27 . 46 . 41 23 4 19 47 29 . 188 162 70 4 268 155 223 AOE 28 | . . . . . . . . . . . . . . . . . . . . . . . . . . . . . . . 24 4 Critical Strikes 89 | . . . 4 . . . 1 . . 3 2 2 . . . . 1 . 2 4 . . 3 1 . 8 8 11 1 13 3 22 Part Disruptions 8 | . . . . . . . . . . . . . . . . . . . . . . . 2 . . 2 . . . . . 4 Damage Taken 34275 | . 329 237 1259 56 . . 28 608 137 643 678 660 . 282 228 . 811 . 612 603 95 615 1548 669 . 3548 2435 786 92 5076 3963 8277 Core 3652 | . 31 25 207 . . . 14 60 12 82 109 45 . 29 24 . 143 . 75 20 24 33 138 34 . 190 118 168 31 426 255 1359 Absorbed by Shields 3609 | . . . . . . . . 48 . . . . . . . . . . . . . . 372 . . 230 345 612 95 699 724 484 Reduced by Siege Mode 2097 | . . . . . . . . . . . . . . . . . . . . . 7 15 . . . 323 316 55 . 454 182 745 Redirected to Core 639 | . . . . . . . . . . . . . . . . . . . . . . . . . . . . 118 19 340 162 . Ignored by Resistances 279 | . . . . . . . . . . . . . . . . . . . . . . . . 37 . 178 . . . . 64 . Regen/Repaired (Parts) 5126 | . 105 . 360 . . . . . . 68 . . . . . . . . . . . . 294 . . . . . . 2076 1556 667 Core Remaining (%) 74 | 100 . 77 . . . 48 . . 84 . . . . 62 . . . . 71 . . . . 75 . 83 . 78 . 68 . . Volleys Fired 847 | 3 53 15 94 4 . 1 10 61 11 32 19 31 . 14 12 14 25 . 12 22 6 16 . 17 . 27 67 79 9 74 69 50 Largest 3 | 2 2 2 2 2 . 2 3 3 3 3 3 3 . 3 3 2 3 . 3 3 3 3 . 3 . 3 3 3 3 3 3 3 Hottest 360 | 40 80 80 91 83 . 83 145 150 150 180 180 180 . 200 235 160 235 . 235 245 245 245 . 242 . 339 339 339 339 353 353 360 Shots Fired 2029 | 6 104 28 179 8 . 2 21 114 33 92 29 87 . 42 29 18 32 . 21 66 19 40 1 51 . 76 187 173 25 207 201 138 Gun 384 | 6 97 13 85 4 . 1 2 25 11 . . . . . 3 . 4 . 4 22 6 13 . 34 . 54 . . . . . . Cannon 1581 | . 5 15 85 4 . 1 19 80 22 92 22 84 . 42 24 18 6 . 14 44 13 25 1 17 . 22 187 173 25 207 197 137 Launcher 62 | . . . 9 . . . . 9 . . 7 3 . . 2 . 22 . 3 . . 2 . . . . . . . . 4 1 Special 2 | . 2 . . . . . . . . . . . . . . . . . . . . . . . . . . . . . . . Kinetic 236 | 6 86 13 85 4 . 1 2 28 11 . . . . . . . . . . . . . . . . . . . . . . . Thermal 1731 | . 18 15 85 4 . 1 19 77 22 92 22 84 . 42 27 18 10 . 18 66 19 38 1 51 . 76 187 173 25 207 197 137 Explosive 61 | . . . 9 . . . . 9 . . 7 3 . . 2 . 22 . 3 . . 2 . . . . . . . . 4 . Electromagnetic 1 | . . . . . . . . . . . . . . . . . . . . . . . . . . . . . . . . 1 Robot Hit Streak 24 | 6 10 3 11 3 . 2 4 17 10 9 7 7 . 5 7 9 6 . 5 19 12 17 4 8 . 24 19 19 13 22 22 24 Robot Miss Streak 8 | . 4 3 3 1 . . . 3 3 3 2 5 . 2 2 2 2 . 2 3 2 3 . 7 . 3 3 3 1 2 8 4 Penetration Max . | . . . . . . . . . . . . . . . . . . . . . . . . . . . . . . . . . Secondary Targets 6 | . 4 . . . . . . . . . . . . . . . . . . . . . . . . 2 . . . . . . Max Gunslinging Chain 1 | . 1 . . . . . . . . . . . . . . . . . . . . . . . . 1 . . . . . . Autonomous 3 | . . . . . . . . 3 . . . . . . . . . . . . . . . . . . . . . . . . Shots Hit Robots 1174 | 6 62 12 122 5 . 1 2 46 20 53 13 43 . 23 19 6 13 . 8 40 13 22 1 41 . 60 102 75 17 126 119 104 Core Hits 553 | 1 24 5 56 2 . 1 1 37 7 20 21 26 . 8 13 3 21 . 5 24 5 12 . 14 . 20 45 29 7 56 52 38 Critical Kills 23 | . 1 . 1 . . . . . . 2 . . . . . . 1 . . 2 . . . . . . 4 2 . 6 4 . Critical Parts Destroyed 2 | 1 . 1 . . . . . . . . . . . . . . . . . . . . . . . . . . . . . . Critical Strikes 42 | 1 1 1 1 . . . . 1 . 2 . . . . . . 1 . . 6 . 2 . 4 . 6 4 2 . 6 4 . Burn 14 | . . . . . . . . . . . . . . . . . . . . 4 . 2 . 2 . 6 . . . . . . Meltdown 21 | . . . . . . . . . . 2 . . . . . . 1 . . 2 . . . . . . 4 2 . 6 4 . Destroy 4 | 1 1 1 1 . . . . . . . . . . . . . . . . . . . . . . . . . . . . . Blast 1 | . . . . . . . . 1 . . . . . . . . . . . . . . . . . . . . . . . . Sunder 2 | . . . . . . . . . . . . . . . . . . . . . . . . 2 . . . . . . . . Melee Attacks 21 | . . . . . . . . . . . . 1 . . . . . . . . . . . 20 . . . . . . . . Impact . | . . . . . . . . . . . . . . . . . . . . . . . . . . . . . . . . . Slashing 1 | . . . . . . . . . . . . 1 . . . . . . . . . . . . . . . . . . . . Piercing . | . . . . . . . . . . . . . . . . . . . . . . . . . . . . . . . . . Entropic 20 | . . . . . . . . . . . . . . . . . . . . . . . . 20 . . . . . . . . Sneak Attacks 1 | . . . . . . . . . . . . . . . . . . . . . . . . 1 . . . . . . . . Combat Hostiles 1 | . . . . . . . . . . . . . . . . . . . . . . . . 1 . . . . . . . . Follow-up Attacks . | . . . . . . . . . . . . . . . . . . . . . . . . . . . . . . . . . Damage Inflicted 45139 | 72 828 171 3098 96 . 22 44 2974 456 1388 1314 1257 . 591 794 156 1934 . 351 1589 286 944 62 1853 . 1815 4361 3083 753 5790 6393 2664 Guns 4761 | 72 802 101 814 51 . . . 239 135 . . . . . 67 . 23 . 22 379 108 223 . 528 . 1197 . . . . . . Cannons 30134 | . 18 70 1219 45 . 22 44 998 319 1336 301 1009 . 591 343 156 123 . 153 702 178 318 25 127 . 609 4335 3083 753 5787 4816 2654 Explosions 8928 | . . . 1058 . . . . 1712 . 52 1013 248 . . 384 . 1788 . 176 507 . 403 . . . . . . . . 1577 10 Melee 1198 | . . . . . . . . . . . . . . . . . . . . . . . . 1198 . . . . . . . . Ramming 118 | . 8 . 7 . . . . 25 2 . . . . . . . . . . 1 . . 37 . . 9 26 . . 3 . . Kinetic 2404 | 72 727 101 814 51 . . . 504 135 . . . . . . . . . . . . . . . . . . . . . . . Thermal 32491 | . 93 70 1219 45 . 22 44 733 319 1336 301 1009 . 591 410 156 146 . 175 1081 286 541 25 655 . 1806 4335 3083 753 5787 4816 2654 Explosive 8833 | . . . 1058 . . . . 1712 . . 1013 248 . . 384 . 1788 . 176 507 . 403 . . . . . . . . 1544 . Electromagnetic 95 | . . . . . . . . . . 52 . . . . . . . . . . . . . . . . . . . . 33 10 Impact . | . . . . . . . . . . . . . . . . . . . . . . . . . . . . . . . . . Slashing . | . . . . . . . . . . . . . . . . . . . . . . . . . . . . . . . . . Piercing . | . . . . . . . . . . . . . . . . . . . . . . . . . . . . . . . . . Entropic 1198 | . . . . . . . . . . . . . . . . . . . . . . . . 1198 . . . . . . . . Highest Corruption 25 | . 1 1 . . . . . . . 2 2 2 2 9 . . 1 1 1 1 1 1 2 2 . 2 10 15 . 8 16 25 Average Corruption 5 | . 1 1 . . . . . . . 1 2 2 2 6 . . 1 1 1 1 1 1 1 2 . 1 6 12 . 5 9 19 Corruption Purged 5 | . . . . . . . . . . 3 . . . . . . . . . . . . . . . . 2 . . . . . Corruption Blocked . | . . . . . . . . . . . . . . . . . . . . . . . . . . . . . . . . . Effects 313 | . 1 3 . . . . . . . 8 12 13 . . . . 9 2 5 . 11 8 3 14 . 6 27 77 . 25 55 34 Message Errors 74 | . 1 . . . . . . . . 3 3 3 . . . . 4 1 3 . 3 4 . 3 . . 2 16 . 8 11 9 Matter Fused 70 | . . 1 . . . . . . . 2 2 7 . . . . 2 . . . 1 1 1 5 . 2 7 13 . 5 16 5 Heat Flow Errors 31 | . . 1 . . . . . . . 1 2 1 . . . . . . 2 . 1 . . 1 . 1 2 10 . 1 5 3 Energy Discharges 37 | . . . . . . . . . . . 1 1 . . . . 1 . . . . 1 1 1 . 2 4 8 . 2 10 5 Parts Rejected 5 | . . . . . . . . . . . . . . . . . . . . . . . . . . . 1 1 . 2 . 1 Parts Fused 2 | . . . . . . . . . . . . . . . . . . . . . . . . 1 . . . 1 . . . . Data Loss (minor) 41 | . . . . . . . . . . . 2 1 . . . . . 1 . . 3 . . 2 . . 7 13 . 3 6 3 Data Loss (major) 12 | . . 1 . . . . . . . 1 . . . . . . 1 . . . . . . 1 . . . 4 . 1 2 1 Misfires 19 | . . . . . . . . . . . 2 . . . . . 1 . . . 1 1 1 . . . 3 4 . 2 4 . Alerts 8 | . . . . . . . . . . . . . . . . . . . . . 2 1 . . . . . 3 . . 1 1 Misdirections 1 | . . . . . . . . . . . . . . . . . . . . . . . . . . . . 1 . . . . Weapon Failures 13 | . . . . . . . . . . 1 . . . . . . . . . . . . . . . 1 1 3 . 1 . 6 Overload Shots . | . . . . . . . . . . . . . . . . . . . . . . . . . . . . . . . . . Overflow Damage 1778 | . . . 73 . . . . 225 4 19 33 40 . 19 . 16 133 . 32 58 . 87 17 56 . 23 157 247 . 216 300 23 Projectiles 1016 | . . . 19 . . . . 6 4 19 33 . . 19 . 16 . . 31 . . . . . . 23 157 247 . 216 203 23 Explosions 689 | . . . 54 . . . . 219 . . . 40 . . . . 133 . 1 58 . 87 . . . . . . . . 97 . Melee 73 | . . . . . . . . . . . . . . . . . . . . . . . 17 56 . . . . . . . . Knockbacks . | . . . . . . . . . . . . . . . . . . . . . . . . . . . . . . . . . Impact . | . . . . . . . . . . . . . . . . . . . . . . . . . . . . . . . . . Kinetic . | . . . . . . . . . . . . . . . . . . . . . . . . . . . . . . . . . Secondary . | . . . . . . . . . . . . . . . . . . . . . . . . . . . . . . . . . Self-Inflicted Damage 1048 | . . . 156 . . . . 54 . . 342 125 . . . . 84 . . 98 . 136 . . . . . . . . . 53 Shots 26 | . . . 7 . . . . 1 . . 6 2 . . . . 3 . . 1 . 2 . . . . . . . . . 4 Rammed 12 | . . . 2 . . . . 1 1 . . . . . . . . . . 1 . . 1 . . 2 3 . . 1 . . Targets Rammed 16 | . 1 . 4 . . . . 1 1 . . . . . . . . . . 1 . . 2 . . 2 3 . . 1 . . Kicked . | . . . . . . . . . . . . . . . . . . . . . . . . . . . . . . . . . Crushed 4 | . 1 . 2 . . . . . . . . . . . . . . . . . . . 1 . . . . . . . . . Highest Temperature 553 | . 72 275 301 1 . . 117 195 117 97 247 254 . 126 243 192 318 . 325 292 248 204 175 260 . 553 375 427 414 282 309 408 Average Temperature 97 | . 26 86 94 1 . . 24 66 41 36 74 113 . 42 82 78 101 . 169 76 89 95 104 102 . 141 101 83 148 113 115 153 Received Heat Transfer 3030 | . 18 57 450 30 . . 27 180 27 234 153 333 . 9 48 . 69 . 69 171 18 48 9 39 . 169 89 110 16 357 156 144 Effects 15 | . . . 1 . . . . . . . 1 . . . . . . . . 1 . . . . . 3 2 2 . . 2 3 Shutdowns 4 | . . . . . . . . . . . . . . . . . . . . . . . . . . 1 . 1 . . . 2 Energy Bleed 7 | . . . 1 . . . . . . . 1 . . . . . . . . 1 . . . . . . 1 1 . . 2 . Interference 2 | . . . . . . . . . . . . . . . . . . . . . . . . . . . 1 . . . . 1 Short Circuit 1 | . . . . . . . . . . . . . . . . . . . . . . . . . . 1 . . . . . . Damage (minor) 1 | . . . . . . . . . . . . . . . . . . . . . . . . . . 1 . . . . . . Siege Activations 47 | . . . . . . . . . . . . . . . . . . . . . 1 2 . . . 2 12 7 . 9 10 4 Total Turns 691 | . . . . . . . . . . . . . . . . . . . . . 16 25 . . . 78 144 58 . 154 84 132 Longest Duration 119 | . . . . . . . . . . . . . . . . . . . . . 16 16 . . . 63 47 17 . 29 22 119 Martial Activations . | . . . . . . . . . . . . . . . . . . . . . . . . . . . . . . . . . Shielding Activations . | . . . . . . . . . . . . . . . . . . . . . . . . . . . . . . . . . Robots Disrupted . | . . . . . . . . . . . . . . . . . . . . . . . . . . . . . . . . . Combat Hostiles . | . . . . . . . . . . . . . . . . . . . . . . . . . . . . . . . . . Robots Corrupted . | . . . . . . . . . . . . . . . . . . . . . . . . . . . . . . . . . Combat Hostiles . | . . . . . . . . . . . . . . . . . . . . . . . . . . . . . . . . . Parts Fried 1 | . . . . . . . . . . . . . . 1 . . . . . . . . . . . . . . . . . . Impact Corruptions 1 | . . . . . . . . . . . . . . . . . . . . . . . 1 . . . . . . . . . Robots Melted 29 | . . . . . . . . . . 2 . . . 2 . . 1 . . 4 . . . 1 . 1 5 3 . 6 4 . Combat Hostiles 24 | . . . . . . . . . . 2 . . . 2 . . 1 . . 4 . . . . . . 4 3 . 4 4 . Parts Melted 147 | . . . 4 . . . . 2 1 6 . 5 . 5 1 . 1 . . 17 4 3 . 8 . 3 23 8 . 22 32 2 Heat Transferred 38228 | . 259 148 2220 74 . 37 74 1145 518 2035 481 1628 . 1016 746 300 300 . 350 2600 650 1250 50 1249 . 2955 3848 2738 666 5032 4366 1493 Parts Sabotaged 1 | . . . . . . . . . . . . . . . . . . . . . . . . . . . . . . . . 1 Parts Stolen 9 | . . . . . . . . . . . 2 2 . . . . . . . . . 5 . . . . . . . . . . Parts Stripped . | . . . . . . . . . . . . . . . . . . . . . . . . . . . . . . . . . Power Chain Reactions 1 | . . . . . . . . . . 1 . . . . . . . . . . . . . . . . . . . . . . Alert | -11 -10 -10 -9 -9 -9 -8 -8 -8 -8 -7 -7 -7 -7 -6 -6 -6 -6 -6 -5 -5 -5 -5 -5 -4 -4 -4 -3 -3 -2 -2 -1 -1 ------- Run | Yrd Mat Min Mat Min Exi Min Mat Gar Mat Fac Low Low Zio Pro Fac Low Low Dat Pro Fac Upp Upp War Pro Fac DSF Res Qua Res Tes Acc Com Maximum Alert Level 4 | . . . 2 . . . . 4 2 1 . . . . . . . . . 1 . . . . 3 3 2 2 2 2 3 2 Low Security (%) 35 | 100 100 100 43 100 . 100 100 15 . 85 . . . . 100 . . . . 81 . . . . . . . . 18 5 . 4 Level 1 23 | . . . 48 . . . . 20 . 14 . . . . . . . . . 18 . . . . . . 16 45 48 14 23 37 Level 2 29 | . . . 8 . . . . 15 100 . . . . . . . . . . . . . . . . 59 83 54 32 79 12 57 Level 3 11 | . . . . . . . . 45 . . . . . . . . . . . . . . . . 100 40 . . . . 63 . Level 4 . | . . . . . . . . 3 . . . . . . . . . . . . . . . . . . . . . . . . Level 5 . | . . . . . . . . . . . . . . . . . . . . . . . . . . . . . . . . . High Security . | . . . . . . . . . . . . . . . . . . . . . . . . . . . . . . . . . Max Security . | . . . . . . . . . . . . . . . . . . . . . . . . . . . . . . . . . Sterilizations 1 | . . . . . . . . . . . . . . . . . . . . . . . . . . 1 . . . . . . Peak Influence 1225 | 5 118 74 420 198 . 5 31 1225 608 234 . . . . 109 . . . . 234 . . . . 912 709 623 601 513 665 832 476 Initial 912 | . . . . 155 . . . . 596 234 . . . . . . . . . . . . . . 912 617 398 345 333 173 396 470 Average 335 | . 23 13 191 151 . 1 3 626 554 74 . . . . 35 . . . . 69 . . . . 898 663 484 417 321 509 648 412 Influence Increases 10925 | 5 308 192 988 93 . 5 32 1225 152 382 140 235 . 335 302 . 310 . 75 382 25 40 62 240 900 212 819 820 518 988 972 168 Destroy 0b10 Robot/C 5520 | . 220 140 560 60 . . 20 580 80 200 140 200 . 220 140 . 240 . 60 200 20 20 40 180 . 160 440 320 60 620 540 60 Destroy 0b10 Robot/NC 395 | 5 35 . 85 . . 5 . . 10 20 . 10 . . 10 . . . . 35 5 10 . 10 . 10 45 20 5 35 40 . Destroy Leader 1054 | . 38 30 164 10 . . 10 20 40 70 . 10 . 40 40 . 40 . . 40 . 10 . 20 . 30 104 72 32 90 134 10 Allied During Kill 97 | . . 7 . 8 . . . . . . . . . 75 . . . . . . . . 7 . . . . . . . . . Successful Hack 209 | . 14 . 53 . . . . 12 3 31 . . . . 16 . . . . . . . . . . . 28 32 . . . 20 Disable Machine 585 | . . 15 60 15 . . . 15 15 45 . . . . 15 . . . . 45 . . . . . . 45 165 . 105 15 30 Anti-Garrison Action 750 | . . . . . . . . 350 . . . . . . . . . . . . . . . . . . . . 400 . . . Destroy Structure 935 | . 1 . 66 . . . 2 158 4 1 . . . . 21 . . . . 62 . . . . . 12 112 106 6 138 213 33 Advance Influence 900 | . . . . . . . . . . . . . . . . . . . . . . . . . 900 . . . . . . . Partial Spotted 15 | . . . . . . . . 15 . . . . . . . . . . . . . . . . . . . . . . . . Lose Combat Pursuer 465 | . . . . . . . . 75 . 15 . 15 . . 60 . 30 . 15 . . . 15 30 . . 45 105 15 . 30 15 Influence Decreases 10795 | 5 308 192 589 334 158 5 32 . 861 879 131 208 55 333 276 28 310 . 75 155 252 40 62 220 38 385 913 841 803 636 897 774 Entered New Map 3262 | . . . . 244 158 . . . 629 282 8 6 55 . 2 11 . . . . 85 . . . 8 265 311 270 261 136 265 266 Time Decay 6603 | 5 308 182 569 70 . 5 32 . 222 447 123 182 . 283 264 17 310 . 65 125 167 40 12 220 30 . 452 571 542 490 592 278 Search Patrol Dispatched 100 | . . . . . . . . . . . . . . . . . . . . . . . . . . . 100 . . . . . Lost Part 586 | . . 10 10 . . . . . 10 . . 20 . 10 10 . . . 10 30 . . 26 . . 120 50 . . 10 40 230 Lost Ally 94 | . . . 10 20 . . . . . . . . . 40 . . . . . . . . 24 . . . . . . . . . Purge Threat 150 | . . . . . . . . . . 150 . . . . . . . . . . . . . . . . . . . . . . Squads Dispatched 60 | . 1 1 2 . . . 1 . 1 6 . . . . 2 . . . . 1 . . . . . 2 4 8 4 10 13 4 Investigation 7 | . . . . . . . . . . 2 . . . . 1 . . . . . . . . . . . . 1 2 1 . . Extermination 18 | . . . . . . . . . . 3 . . . . 1 . . . . . . . . . . . 2 4 . 3 4 1 Reinforcement 26 | . 1 . 2 . . . 1 . . 1 . . . . . . . . . 1 . . . . . 2 2 3 2 5 4 2 Assault 6 | . . 1 . . . . . . 1 . . . . . . . . . . . . . . . . . . . . 1 2 1 Garrison 3 | . . . . . . . . . . . . . . . . . . . . . . . . . . . . . . . 3 . Intercept . | . . . . . . . . . . . . . . . . . . . . . . . . . . . . . . . . . Searches Triggered 1 | . . . . . . . . . . . . . . . . . . . . . . . . . . . 1 . . . . . Data Miner Redirects 1 | . . . . . . . . . . . . . . . . . . . . . . . . . . . 1 . . . . . Construction Impeded 5 | . . . 2 . . . . . . . . . . . . . . . . 1 . . . . . . . . . . 2 . Haulers Reinforced 2 | . . . . . . . . . . . . . . . . . . . . . . . . . . . . 1 1 . . . Active Scanning Responses . | . . . . . . . . . . . . . . . . . . . . . . . . . . . . . . . . . Cargo Convoy Interrupts 1 | . . . . . . . . . . . . . . . . . . . . . . . . . . . 1 . . . . . Stealth | -11 -10 -10 -9 -9 -9 -8 -8 -8 -8 -7 -7 -7 -7 -6 -6 -6 -6 -6 -5 -5 -5 -5 -5 -4 -4 -4 -3 -3 -2 -2 -1 -1 --------- Run | Yrd Mat Min Mat Min Exi Min Mat Gar Mat Fac Low Low Zio Pro Fac Low Low Dat Pro Fac Upp Upp War Pro Fac DSF Res Qua Res Tes Acc Com Distress Signals 23 | . 2 1 . . . . 1 . . . . . . . . . . . . 1 . . . . . . . 1 5 4 3 5 Communications Jammed 32 | . . . . . . . . . . . . . . . . . . . . . . . . . . . . . . . 15 17 Distress Signals 28 | . . . . . . . . . . . . . . . . . . . . . . . . . . . . . . . 11 17 Times Spotted 462 | . 22 5 44 3 . . 1 24 10 12 12 15 . 12 9 . 15 . 4 12 1 5 8 17 . 13 30 29 17 41 33 68 Peak Tracking Total 52 | . 4 3 6 3 . . . 5 3 3 7 6 . 4 4 . 7 . 4 4 1 4 8 5 . 6 4 5 7 10 5 52 Tactical Retreats 19 | . . . . . . . . 2 . 1 . 1 . . 1 . 1 . 1 . . . 1 1 . . 1 5 1 . 2 1 Traps | -11 -10 -10 -9 -9 -9 -8 -8 -8 -8 -7 -7 -7 -7 -6 -6 -6 -6 -6 -5 -5 -5 -5 -5 -4 -4 -4 -3 -3 -2 -2 -1 -1 ------- Run | Yrd Mat Min Mat Min Exi Min Mat Gar Mat Fac Low Low Zio Pro Fac Low Low Dat Pro Fac Upp Upp War Pro Fac DSF Res Qua Res Tes Acc Com Traps Triggered 17 | . 2 . . . . . . 3 . 4 . . . . . . . . . . . . . . . 2 . 1 . . 5 . Indirectly 2 | . . . . . . . . . . 2 . . . . . . . . . . . . . . . . . . . . . . Trap Hack Attempts . | . . . . . . . . . . . . . . . . . . . . . . . . . . . . . . . . . Triggered . | . . . . . . . . . . . . . . . . . . . . . . . . . . . . . . . . . Disarmed . | . . . . . . . . . . . . . . . . . . . . . . . . . . . . . . . . . Reprogrammed . | . . . . . . . . . . . . . . . . . . . . . . . . . . . . . . . . . Reused . | . . . . . . . . . . . . . . . . . . . . . . . . . . . . . . . . . Traps Extracted . | . . . . . . . . . . . . . . . . . . . . . . . . . . . . . . . . . Installed . | . . . . . . . . . . . . . . . . . . . . . . . . . . . . . . . . . Triggered . | . . . . . . . . . . . . . . . . . . . . . . . . . . . . . . . . . Machines | -11 -10 -10 -9 -9 -9 -8 -8 -8 -8 -7 -7 -7 -7 -6 -6 -6 -6 -6 -5 -5 -5 -5 -5 -4 -4 -4 -3 -3 -2 -2 -1 -1 ---------- Run | Yrd Mat Min Mat Min Exi Min Mat Gar Mat Fac Low Low Zio Pro Fac Low Low Dat Pro Fac Upp Upp War Pro Fac DSF Res Qua Res Tes Acc Com Machines Disabled 49 | . . 1 4 1 . . . 6 1 3 2 . . . 1 . 1 . . 3 . . . . . . 3 11 . 9 1 2 Max in Single Turn 2 | . . 1 2 1 . . . 1 1 2 1 . . . 1 . 1 . . 1 . . . . . . 1 2 . 1 1 1 Garrison Access 4 | . . . . . . . . . . . . . . . . . . . . . . . . . 1 . . . 3 . . . Garrison Relay 5 | . . . . . . . . 5 . . . . . . . . . . . . . . . . . . . . . . . . Machines Repaired . | . . . . . . . . . . . . . . . . . . . . . . . . . . . . . . . . . Machines Dismantled . | . . . . . . . . . . . . . . . . . . . . . . . . . . . . . . . . . Machines Sabotaged . | . . . . . . . . . . . . . . . . . . . . . . . . . . . . . . . . . Overloaded Fab Kills . | . . . . . . . . . . . . . . . . . . . . . . . . . . . . . . . . . Hacking | -11 -10 -10 -9 -9 -9 -8 -8 -8 -8 -7 -7 -7 -7 -6 -6 -6 -6 -6 -5 -5 -5 -5 -5 -4 -4 -4 -3 -3 -2 -2 -1 -1 --------- Run | Yrd Mat Min Mat Min Exi Min Mat Gar Mat Fac Low Low Zio Pro Fac Low Low Dat Pro Fac Upp Upp War Pro Fac DSF Res Qua Res Tes Acc Com Machines Accessed 84 | . 8 . 12 . 2 . 1 2 3 8 2 1 . . 2 1 1 3 . . 1 1 2 . 2 . 4 10 3 4 7 4 Terminals 48 | . 5 . 8 . . . . 2 3 6 1 . . . 1 . . . . . 1 . . . 1 . 1 7 1 3 4 4 Fabricators 4 | . . . . . . . . . . 1 . . . . 1 . . . . . . . . . . . . . . . 2 . Repair Stations 8 | . 1 . 1 . . . . . . 1 . . . . . . . . . . . . . . . . 1 2 . 1 1 . Recycling Units 4 | . 2 . 2 . . . . . . . . . . . . . . . . . . . . . . . . . . . . . Scanalyzers 4 | . . . 1 . . . . . . . . . . . . . . . . . . . . . . . 2 1 . . . . Garrison Access 4 | . . . . . . . 1 . . . . . . . . . . . . . . . . . 1 . . . 2 . . . Total Hacks 229 | . 31 . 44 . 2 . 1 5 7 36 6 1 . . 5 1 1 26 . . 1 1 2 . 3 . 10 17 4 5 11 9 Successful 129 | . 15 . 30 . 2 . 1 2 2 20 6 1 . . 4 1 1 26 . . 1 1 2 . 2 . 3 4 2 1 . 2 Failed 98 | . 16 . 13 . . . . 3 5 16 . . . . 1 . . . . . . . . . 1 . 6 13 2 4 11 7 Catastrophic 13 | . . . . . . . . 2 1 1 . . . . . . . . . . . . . . . . 1 3 1 2 . 2 Database Lockouts 2 | . . . 1 . . . . . . . . . . . . . . . . . . . . . . . 1 . . . . . Manual 106 | . 26 . 23 . 1 . . 2 7 23 . . . . 3 . . . . . . . 1 . . . . 2 4 3 3 8 Terminals 138 | . 25 . 26 . . . . 5 7 31 5 . . . 3 . . . . . 1 . . . 2 . 1 11 1 4 7 9 Fabricators 8 | . . . . . . . . . . 3 . . . . 2 . . . . . . . . . . . . . . . 3 . Repair Stations 19 | . 2 . 9 . . . . . . 2 . . . . . . . . . . . . . . . . 1 3 . 1 1 . Recycling Units 9 | . 4 . 5 . . . . . . . . . . . . . . . . . . . . . . . . . . . . . Scanalyzers 15 | . . . 4 . . . . . . . . . . . . . . . . . . . . . . . 8 3 . . . . Garrison Access 5 | . . . . . . . 1 . . . . . . . . . . . . . . . . . 1 . . . 3 . . . Terminal Hacks 61 | . 1 . 5 . 2 . . 2 . 7 6 1 . . . 1 1 26 . . 1 1 2 . 1 . 1 1 . 1 . 1 Record 15 | . . . . . 1 . . . . . 5 . . . . . . 6 . . 1 . 1 . . . . 1 . . . . Part Schematic 13 | . . . . . . . . . . 2 . . . . . . . 11 . . . . . . . . . . . . . . Robot Schematic 6 | . . . . . . . . . . . . . . . . . . 6 . . . . . . . . . . . . . . Prototype ID Bank 3 | . . . . . . . . . . . . . . . . . . 3 . . . . . . . . . . . . . . Open Door 8 | . . . . . . . . . . . 1 1 . . . 1 1 . . . . 1 1 . . . . . . 1 . 1 Open DSF 1 | . . . . . . . . . . . . . . . . . . . . . . . . . 1 . . . . . . . Level Access Points 2 | . . . 1 . . . . . . 1 . . . . . . . . . . . . . . . . . . . . . . Branch Access Points 3 | . . . 1 . . . . . . 1 . . . . . . . . . . . . . . . . 1 . . . . . Emergency Access Points 1 | . . . . . . . . 1 . . . . . . . . . . . . . . . . . . . . . . . . Terminal Index 2 | . 1 . . . . . . . . 1 . . . . . . . . . . . . . . . . . . . . . . Alert Level 2 | . . . 1 . . . . . . 1 . . . . . . . . . . . . . . . . . . . . . . Unreport Threat 1 | . . . . . . . . . . 1 . . . . . . . . . . . . . . . . . . . . . . Locate Traps 1 | . . . 1 . . . . . . . . . . . . . . . . . . . . . . . . . . . . . Dispatch Records 1 | . . . 1 . . . . . . . . . . . . . . . . . . . . . . . . . . . . . Security Stations 1 | . . . . . . . . 1 . . . . . . . . . . . . . . . . . . . . . . . . Proto ID Catalog 1 | . . . . . 1 . . . . . . . . . . . . . . . . . . . . . . . . . . . Fabricator Hacks 4 | . . . . . . . . . . 2 . . . . 2 . . . . . . . . . . . . . . . . . Load Schematic 2 | . . . . . . . . . . 1 . . . . 1 . . . . . . . . . . . . . . . . . Build 2 | . . . . . . . . . . 1 . . . . 1 . . . . . . . . . . . . . . . . . Repair Station Hacks 13 | . 2 . 8 . . . . . . 2 . . . . . . . . . . . . . . . . . 1 . . . . Scan Component 7 | . 1 . 4 . . . . . . 1 . . . . . . . . . . . . . . . . . 1 . . . . Repair 6 | . 1 . 4 . . . . . . 1 . . . . . . . . . . . . . . . . . . . . . . Recycling Unit Hacks 4 | . 2 . 2 . . . . . . . . . . . . . . . . . . . . . . . . . . . . . Retrieve Components 4 | . 2 . 2 . . . . . . . . . . . . . . . . . . . . . . . . . . . . . Scanalyzer 7 | . . . 4 . . . . . . . . . . . . . . . . . . . . . . . 2 1 . . . . Insert Component 1 | . . . . . . . . . . . . . . . . . . . . . . . . . . . 1 . . . . . Retrieve Study 6 | . . . 4 . . . . . . . . . . . . . . . . . . . . . . . 1 1 . . . . Garrison Access Hacks 2 | . . . . . . . 1 . . . . . . . . . . . . . . . . . 1 . . . . . . . Unlock Access 1 | . . . . . . . 1 . . . . . . . . . . . . . . . . . . . . . . . . . Seal Access 1 | . . . . . . . . . . . . . . . . . . . . . . . . . 1 . . . . . . . Unauthorized Hacks 38 | . 10 . 11 . . . . . 2 9 . . . . 2 . . . . . . . . . . . . 1 2 . . 1 Terminals 33 | . 8 . 10 . . . . . 2 9 . . . . 2 . . . . . . . . . . . . 1 . . . 1 Assimilate 1 | . . . 1 . . . . . . . . . . . . . . . . . . . . . . . . . . . . . Botnet 12 | . 2 . 3 . . . . . 2 2 . . . . 1 . . . . . . . . . . . . 1 . . . 1 Operators 3 | . 1 . 1 . . . . . . 1 . . . . . . . . . . . . . . . . . . . . . . Skim 17 | . 5 . 5 . . . . . . 6 . . . . 1 . . . . . . . . . . . . . . . . . Fabricators . | . . . . . . . . . . . . . . . . . . . . . . . . . . . . . . . . . Repair Stations . | . . . . . . . . . . . . . . . . . . . . . . . . . . . . . . . . . Recycling Units 3 | . 2 . 1 . . . . . . . . . . . . . . . . . . . . . . . . . . . . . Reject 3 | . 2 . 1 . . . . . . . . . . . . . . . . . . . . . . . . . . . . . Scanalyzers . | . . . . . . . . . . . . . . . . . . . . . . . . . . . . . . . . . Garrison Access 2 | . . . . . . . . . . . . . . . . . . . . . . . . . . . . . 2 . . . Jam 2 | . . . . . . . . . . . . . . . . . . . . . . . . . . . . . 2 . . . Data Cores Recovered 1 | . . . . . . . . . . . . . . . . . . . . . . . . . . . 1 . . . . . Used . | . . . . . . . . . . . . . . . . . . . . . . . . . . . . . . . . . Hacking Detections 64 | . 7 . 12 . . . 1 2 3 7 1 . . . 2 . . . . . . . . . . . 4 9 2 3 7 4 Full Trace Events 3 | . . . . . . . . . . 2 . . . . 1 . . . . . . . . . . . . . . . . . Feedback Events . | . . . . . . . . . . . . . . . . . . . . . . . . . . . . . . . . . Feedback Blocked . | . . . . . . . . . . . . . . . . . . . . . . . . . . . . . . . . . Robot Schematics Acquired 7 | . . . . . . . . . . . . . . . . . . 6 . . . . . . . . . . . 1 . . Robots Built . | . . . . . . . . . . . . . . . . . . . . . . . . . . . . . . . . . Authchips . | . . . . . . . . . . . . . . . . . . . . . . . . . . . . . . . . . Time . | . . . . . . . . . . . . . . . . . . . . . . . . . . . . . . . . . Total Robot Build Rating . | . . . . . . . . . . . . . . . . . . . . . . . . . . . . . . . . . Part Schematics Acquired 21 | . . . . . . . . . . 2 . . . . . . . 11 . . . . . . . . . . . 8 . . Parts Built 2 | . . . . . . . . . . 1 . . . . 1 . . . . . . . . . . . . . . . . . Authchips . | . . . . . . . . . . . . . . . . . . . . . . . . . . . . . . . . . Time 92 | . . . . . . . . . . 67 . . . . 25 . . . . . . . . . . . . . . . . . Total Part Build Rating 5 | . . . . . . . . . . 4 . . . . 1 . . . . . . . . . . . . . . . . . Part Studies Acquired 6 | . . . 4 . . . . . . . . . . . . . . . . . . . . . . . 1 1 . . . . Parts Repaired 6 | . 1 . 4 . . . . . . 1 . . . . . . . . . . . . . . . . . . . . . . Time 174 | . 26 . 104 . . . . . . 44 . . . . . . . . . . . . . . . . . . . . . . Parts Recycled . | . . . . . . . . . . . . . . . . . . . . . . . . . . . . . . . . . Recycled Matter . | . . . . . . . . . . . . . . . . . . . . . . . . . . . . . . . . . Retrieved Matter . | . . . . . . . . . . . . . . . . . . . . . . . . . . . . . . . . . Retrieved Components 22 | . 10 . 12 . . . . . . . . . . . . . . . . . . . . . . . . . . . . . Parts Scanalyzed 1 | . . . . . . . . . . . . . . . . . . . . . . . . . . . 1 . . . . . Part Schematics Acquired . | . . . . . . . . . . . . . . . . . . . . . . . . . . . . . . . . . Parts Damaged . | . . . . . . . . . . . . . . . . . . . . . . . . . . . . . . . . . Bothacking | -11 -10 -10 -9 -9 -9 -8 -8 -8 -8 -7 -7 -7 -7 -6 -6 -6 -6 -6 -5 -5 -5 -5 -5 -4 -4 -4 -3 -3 -2 -2 -1 -1 ------------ Run | Yrd Mat Min Mat Min Exi Min Mat Gar Mat Fac Low Low Zio Pro Fac Low Low Dat Pro Fac Upp Upp War Pro Fac DSF Res Qua Res Tes Acc Com Used RIF Installer . | . . . . . . . . . . . . . . . . . . . . . . . . . . . . . . . . . Robots Hacked . | . . . . . . . . . . . . . . . . . . . . . . . . . . . . . . . . . Non-combat . | . . . . . . . . . . . . . . . . . . . . . . . . . . . . . . . . . Combat . | . . . . . . . . . . . . . . . . . . . . . . . . . . . . . . . . . Robot Hacks Applied . | . . . . . . . . . . . . . . . . . . . . . . . . . . . . . . . . . Relay Couplers Released 21 | . . . . . . . . 18 . . . . . . . . . . . . . . . . . . . . 3 . . . Machine Destruction 21 | . . . . . . . . 18 . . . . . . . . . . . . . . . . . . . . 3 . . . Fabnet Peak Effective % . | . . . . . . . . . . . . . . . . . . . . . . . . . . . . . . . . . Robots Rewired 6 | . . . . . . . . . . . . . . . . . . . . . . . 5 1 . . . . . . . . Allies Hacked 3 | . . . . . . . . . . . . . . . . . . . . . . . 3 . . . . . . . . . Hacks Repelled . | . . . . . . . . . . . . . . . . . . . . . . . . . . . . . . . . . Allies | -11 -10 -10 -9 -9 -9 -8 -8 -8 -8 -7 -7 -7 -7 -6 -6 -6 -6 -6 -5 -5 -5 -5 -5 -4 -4 -4 -3 -3 -2 -2 -1 -1 -------- Run | Yrd Mat Min Mat Min Exi Min Mat Gar Mat Fac Low Low Zio Pro Fac Low Low Dat Pro Fac Upp Upp War Pro Fac DSF Res Qua Res Tes Acc Com Total Allies 14 | . . 1 1 2 . . . . . . . . 4 . . . . . . . . . 5 1 . . . . . . . . Largest Group 5 | . . 1 1 2 1 . . . . . . . 4 4 1 . . . . . . . 5 1 . . . . . . . . Highest-Rated Group 276 | . . 31 10 43 31 . . . . . . . 130 130 20 . . . . . . . 276 30 . . . . . . . . Highest-Rated Ally 68 | . . 31 10 31 31 . . . . . . . 51 51 20 . . . . . . . 68 30 . . . . . . . . Initial Warlord ECA Mod 12 | . . . . . . . . . 7 6 6 6 6 5 5 5 5 5 4 4 4 4 4 3 3 3 12 12 11 11 10 10 Total Orders 4 | . . . 1 . . . . . . . . . . . 1 . . . . 1 . . 1 . . . . . . . . . STAY 1 | . . . 1 . . . . . . . . . . . . . . . . . . . . . . . . . . . . . RETURN 3 | . . . . . . . . . . . . . . . 1 . . . . 1 . . 1 . . . . . . . . . Ally Attacks 70 | . . 17 . 3 . . . . . . . . . 37 . . . . . . . . 12 1 . . . . . . . . Total Damage 2203 | . . 164 . 63 . . . . . . . . . 1122 . . . . . . . . 812 42 . . . . . . . . Kills 12 | . . 4 . 1 . . . . . . . . . 5 . . . . . . . . 1 1 . . . . . . . . Allies Corrupted 2 | . . 1 . . . . . . . . . . . . . . . . . . . . 1 . . . . . . . . . Allies Melted 3 | . . . . . . . . . . . . . . . . . . . . . . . 1 1 . . . . 1 . . . Intel | -11 -10 -10 -9 -9 -9 -8 -8 -8 -8 -7 -7 -7 -7 -6 -6 -6 -6 -6 -5 -5 -5 -5 -5 -4 -4 -4 -3 -3 -2 -2 -1 -1 ------- Run | Yrd Mat Min Mat Min Exi Min Mat Gar Mat Fac Low Low Zio Pro Fac Low Low Dat Pro Fac Upp Upp War Pro Fac DSF Res Qua Res Tes Acc Com Active Infowar (turns) 20496 | 28 1261 889 1339 . . . . . . 421 819 . 944 . 677 1042 1172 156 585 377 1156 593 1201 829 72 34 . 1527 1558 1284 1860 672 Optics 945 | . . . . . . . . . . . . . 944 . . . . . . . . . . . . . . . 1 . . . Sensors 14262 | . . 3 . . . . . . . 421 819 . . . 636 1038 1172 156 585 377 1156 593 655 135 . . . 1527 1558 1284 1726 421 IFF 2 | . . . . . . . . . . . . . . . . . . . . . . . . . . . . . . . 2 . Terrain 6652 | . . . . . . . . . . . . . . . 508 1008 926 156 433 201 1126 545 818 825 72 34 . . . . . . Seismic 2537 | 28 1261 886 362 . . . . . . . . . . . . . . . . . . . . . . . . . . . . . T.N.C. 1336 | . . . 1336 . . . . . . . . . . . . . . . . . . . . . . . . . . . . . Machine Analysis 1284 | . . . . . . . . . . . . . . . . . . . . . . . . . . . . . . . 860 424 Jamming 1988 | . . . . . . . . . . . . . . . . . . . . . . . . . . . . . . . 1316 672 Robot Analysis Total . | . . . . . . . . . . . . . . . . . . . . . . . . . . . . . . . . . Derelict Logs Recovered 13 | . . 1 . . . . . . . . 2 2 1 2 . 2 1 . . . 1 . . 1 . . . . . . . . Drone Launches 3 | . . . . . . . . . . . . . . . 1 . . . . 1 . . 1 . . . . . . . . . Drone Recoveries 3 | . . . . . . . . . . . . . . . 1 . . . . 1 . . 1 . . . . . . . . . Exploration | -11 -10 -10 -9 -9 -9 -8 -8 -8 -8 -7 -7 -7 -7 -6 -6 -6 -6 -6 -5 -5 -5 -5 -5 -4 -4 -4 -3 -3 -2 -2 -1 -1 ------------- Run | Yrd Mat Min Mat Min Exi Min Mat Gar Mat Fac Low Low Zio Pro Fac Low Low Dat Pro Fac Upp Upp War Pro Fac DSF Res Qua Res Tes Acc Com Turns Passed 29773 | 114 1261 901 1916 155 925 59 214 1214 472 1311 869 740 1434 675 781 1042 1172 156 601 377 1156 654 1910 831 72 466 1131 1738 1558 1285 1861 722 Spaces Moved 14791 | 52 642 387 833 81 574 36 81 624 260 591 515 394 908 416 412 655 685 93 314 139 574 342 880 282 34 158 431 825 941 549 754 329 Core 37 | 4 . . . . . . . . . . . . . . . . . . . . . . . . . . . . . . . 33 Treads 14754 | 48 642 387 833 81 574 36 81 624 260 591 515 394 908 416 412 655 685 93 314 139 574 342 880 282 34 158 431 825 941 549 754 296 Legs . | . . . . . . . . . . . . . . . . . . . . . . . . . . . . . . . . . Wheels . | . . . . . . . . . . . . . . . . . . . . . . . . . . . . . . . . . Hover . | . . . . . . . . . . . . . . . . . . . . . . . . . . . . . . . . . Flight . | . . . . . . . . . . . . . . . . . . . . . . . . . . . . . . . . . Fastest Speed 50 | 50 160 160 160 160 160 160 160 160 145 151 155 148 152 148 148 152 152 162 162 162 166 166 163 163 163 145 160 155 155 155 155 50 Average Speed 161 | 151 160 160 160 160 160 160 199 164 151 153 155 148 152 148 150 152 158 162 173 170 166 166 198 221 163 154 160 158 158 160 158 150 Slowest Speed 465 | 160 160 160 160 160 160 160 240 240 160 155 155 155 152 152 152 152 162 162 242 247 167 166 246 245 163 465 160 160 163 340 161 250 Overloaded Moves . | . . . . . . . . . . . . . . . . . . . . . . . . . . . . . . . . . Propulsion Burnouts . | . . . . . . . . . . . . . . . . . . . . . . . . . . . . . . . . . Robots Hopped . | . . . . . . . . . . . . . . . . . . . . . . . . . . . . . . . . . Potential Cave-ins 5 | . . . . . . . . . . . . . . . . . . . 4 . . . . . . . . 1 . . . . Cave-ins Triggered . | . . . . . . . . . . . . . . . . . . . . . . . . . . . . . . . . . Exploration Rate (%) 47 | 3 89 89 67 22 78 13 16 78 27 15 64 52 87 57 10 65 87 69 47 3 73 56 88 47 1 77 15 62 34 46 17 18 Regions Visited 32 Branch Regions 19 Pre-discovered Areas 12 | . . 1 2 . 1 . . . . 2 1 . 2 . . 1 . 1 . . 1 . . . . . . . . . . . Known Exits Taken 24 | . . 1 1 . 1 1 1 . 1 1 1 1 1 1 1 1 1 1 1 1 1 . . . 1 . 1 1 1 1 1 . Unknown Exits Taken 6 | 1 1 . . 1 . . . . . . . . . . . . . . . . . 1 1 1 . . . . . . . . Scrap Searched 26 | . . 2 . . . 1 . . . . 2 1 3 1 . 2 5 . 1 . 3 2 . 3 . . . . . . . . Spaces Dug 361 | . . . 23 . . . 2 68 . . 57 42 . . . 6 64 . 39 4 . 1 . . . . 10 22 1 9 13 . Terrain Destroyed 995 | . . . 62 . . . 2 99 4 . 90 56 . . 23 8 276 . 55 33 . 22 . . . 6 58 63 4 47 77 10 Melee . | . . . . . . . . . . . . . . . . . . . . . . . . . . . . . . . . . Projectile 275 | . . . . . . . 2 . 4 . . 1 . . . 8 1 . 6 4 . 1 . . . 6 58 63 4 47 60 10 AOE 720 | . . . 62 . . . . 99 . . 90 55 . . 23 . 275 . 49 29 . 21 . . . . . . . . 17 . Terrain Rammed 1 | . . . . . . . . 1 . . . . . . . . . . . . . . . . . . . . . . . . Walls Destroyed . | . . . . . . . . . . . . . . . . . . . . . . . . . . . . . . . . . Machines Disabled 1 | . . . . . . . . 1 . . . . . . . . . . . . . . . . . . . . . . . . Actions | -11 -10 -10 -9 -9 -9 -8 -8 -8 -8 -7 -7 -7 -7 -6 -6 -6 -6 -6 -5 -5 -5 -5 -5 -4 -4 -4 -3 -3 -2 -2 -1 -1 --------- Run | Yrd Mat Min Mat Min Exi Min Mat Gar Mat Fac Low Low Zio Pro Fac Low Low Dat Pro Fac Upp Upp War Pro Fac DSF Res Qua Res Tes Acc Com Total 19147 | 78 771 641 1249 100 582 36 117 727 324 925 559 483 965 441 560 681 734 98 345 225 763 396 1051 431 53 321 735 1125 1006 815 1326 484 Wait 2304 | 14 45 231 213 12 . . 7 6 12 274 3 17 17 4 54 5 1 . 9 48 166 19 26 79 3 80 172 161 11 120 433 62 Move 14760 | 51 641 386 832 80 573 35 81 623 259 590 514 393 907 415 411 654 684 92 313 138 573 341 879 281 33 157 430 824 940 548 753 329 Hop . | . . . . . . . . . . . . . . . . . . . . . . . . . . . . . . . . . Pick Up 254 | 3 15 3 29 . 2 . 7 8 7 8 8 11 13 2 25 . 2 . . 3 4 4 24 7 3 14 12 11 6 9 12 2 Fast Attach 159 | 6 1 1 7 . . . 1 . 2 1 . 4 11 . 5 2 . 3 . . 1 . 18 . 1 11 14 16 9 21 19 5 Attach 102 | 1 . 1 6 . . . 3 4 . 2 3 4 1 2 6 . . . 1 5 1 4 6 5 5 11 6 1 2 3 5 14 Detach 31 | . . . . . . . . . . . . 1 . . 2 . . . . . 2 . 7 2 3 3 4 1 1 1 . 4 Swap 231 | . 7 1 25 2 2 . 1 12 14 10 7 9 1 4 19 4 17 . 10 8 6 8 8 7 1 2 6 6 8 6 10 10 Drop 356 | . 8 3 39 2 5 . 7 11 18 8 5 12 15 . 26 2 5 3 . . 4 4 25 4 4 14 21 26 20 32 25 8 Fire 847 | 3 53 15 94 4 . 1 10 61 11 32 19 31 . 14 12 14 25 . 12 22 6 16 . 17 . 27 67 79 9 74 69 50 Melee 21 | . . . . . . . . . . . . 1 . . . . . . . . . . . 20 . . . . . . . . Ram 1 | . . . . . . . . 1 . . . . . . . . . . . . . . . . . . . . . . . . Kick . | . . . . . . . . . . . . . . . . . . . . . . . . . . . . . . . . . Crush 16 | . 1 . 4 . . . . 1 1 . . . . . . . . . . 1 . . 2 . . 2 3 . . 1 . . Escape Stasis . | . . . . . . . . . . . . . . . . . . . . . . . . . . . . . . . . . Rewire 65 | . . . . . . . . . . . . . . . . . . . . . . . 56 9 . . . . . . . . Trap . | . . . . . . . . . . . . . . . . . . . . . . . . . . . . . . . . . Miscellaneous . | . . . . . . . . . . . . . . . . . . . . . . . . . . . . . . . . . Route ------- -11/Scrapyard -10/Materials (discovered 6 exits: *Mat x3 / [*Min x2] / Sub) -10/Mines (discovered 2 exits: *Mat x2) -9/Materials (discovered 7 exits: *Mat x3 / *Min x2 / Sto x2) -9/Mines (discovered 2 exits: *Exi / *Zio) -9/Exiles (discovered 2 exits: *Min x2) -8/Mines -8/Materials (discovered 2 exits: Fac / Gar) -8/Garrison (discovered 4 exits: *Mat x4) -8/Materials -7/Factory (discovered 6 exits: Fac x4 / *Low x2) -7/Lower Caves -7/Lower Caves (discovered 2 exits: Fac / *Zio) -7/Zion -6/Proximity Caves -6/Factory (discovered 3 exits: Fac / *Low x2) -6/Lower Caves -6/Lower Caves (discovered 2 exits: *Fac / *Dat) -6/Data Miner -5/Proximity Caves -5/Factory (discovered 2 exits: *Upp x2) -5/Upper Caves -5/Upper Caves -5/Warlord -4/Proximity Caves -4/Factory -4/DSF -3/Research (discovered 2 exits: *Qua x2) -3/Quarantine -2/Research -2/Testing -1/Access -1/Command History --------- Turn | Location | Event 3 | -11/Scrapyard | Discovered new exit (range 15) 115 | -11/Scrapyard | Entered Materials 306 | -10/Materials | Build established: Mutant 502 | -10/Materials | Discovered new exit (range 15) 637 | -10/Materials | Discovered new exit (range 14) 845 | -10/Materials | Repaired Lgt. Treads 944 | -10/Materials | Discovered new exit (range 15) 1098 | -10/Materials | Discovered new exit (range 13) 1302 | -10/Materials | Identified exit to Subcaves 1333 | -10/Materials | Identified exit to Materials 1371 | -10/Materials | Learned Storage trap positions 1376 | -10/Materials | Entered Mines 1451 | -10/Mines | Found a damaged Exp. Sensor Array with a note attached 1455 | -10/Mines | Found Prototype Device 1455 | -10/Mines | Identified Exp. Sensor Array 1491 | -10/Mines | Met a Derelict testing a Signal Generator 2048 | -10/Mines | Excavation squad dispatched 2048 | -10/Mines | A large section of the Mines collapsed 2277 | -10/Mines | Entered Materials 2277 | -9/Materials | Evolved 2 slots: Propulsion x1, Utility x1 2278 | -9/Materials | Identified exit to Materials 2278 | -9/Materials | Identified exit to Mines 2643 | -9/Materials | Destroyed 7 combat bots 2691 | -9/Materials | Repaired Lgt. Treads 2719 | -9/Materials | Repaired Lgt. Treads 2746 | -9/Materials | Repaired Lgt. Treads 2774 | -9/Materials | Repaired Lgt. Treads 3378 | -9/Materials | Build established: Scavenger-Mutant 3992 | -9/Materials | Central database locked down 4002 | -9/Materials | Core integrity fell below 50% 4035 | -9/Materials | Identified exit to Storage 4035 | -9/Materials | Learned location of 1 exit from Materials 4093 | -9/Materials | Learned Storage stockpile data 4108 | -9/Materials | Loaded intel: 12 terminal locations 4115 | -9/Materials | Learned Storage stockpile data 4116 | -9/Materials | Learned location of Mines (-9) 4127 | -9/Materials | Learned 2 Storage zone layouts 4148 | -9/Materials | Learned Storage stockpile data 4177 | -9/Materials | Learned location of Recycling (-9) 4193 | -9/Materials | Entered Mines 4194 | -9/Mines | Assembled infested the area 4194 | -9/Mines | A Derelict revealed a hidden shortcut to a safe place 4331 | -9/Mines | Deemed a non-threat by the Exiles lab entrance 4331 | -9/Mines | Discovered new exit (range 5) 4348 | -9/Mines | Entered Exiles 4348 | -9/Exiles | Accompanied by 1 ally 4349 | -9/Exiles | Identified exit to Mines 4378 | -9/Exiles | Led the pair of lost Derelicts to a safe place 4393 | -9/Exiles | Met 8R-AWN 4417 | -9/Exiles | Met EX-HEX 4464 | -9/Exiles | Met EX-BIN 4483 | -9/Exiles | Aligned with FarCom system 4484 | -9/Exiles | Given EX-Vault access code 4521 | -9/Exiles | Opened EX-Vault 4535 | -9/Exiles | Found Firepult 4588 | -9/Exiles | Warned to stay clear of 0b10 Research branches 4782 | -9/Exiles | Met EX-DEC 4821 | -9/Exiles | Visited The Gauntlet 4898 | -9/Exiles | Learned location of Zion (-7) 5086 | -9/Exiles | Found AWS/Autocannon 5273 | -9/Exiles | Stole two prototypes: Firepult, AWS/Autocannon 5273 | -9/Exiles | Entered Mines 5280 | -8/Mines | Discovered exit to Materials (range 12) 5332 | -8/Mines | Entered Materials 5332 | -8/Materials | Evolved 2 slots: Propulsion x1, Weapon x1 5333 | -8/Materials | Identified exit to Factory 5546 | -8/Materials | Identified exit to Garrison 5546 | -8/Materials | Entered Garrison 5594 | -8/Garrison | Triggered checkpoint 5621 | -8/Garrison | Garrison Relay disabled 5651 | -8/Garrison | Build established: Scavenger-Skirmisher 5698 | -8/Garrison | Triggered checkpoint 5901 | -8/Garrison | Discovered new exit (range 14) 5912 | -8/Garrison | Learned Materials security intel 6052 | -8/Garrison | Garrison Relay disabled 6062 | -8/Garrison | Garrison Relay disabled 6172 | -8/Garrison | Triggered checkpoint 6248 | -8/Garrison | Triggered checkpoint 6303 | -8/Garrison | Garrison Relay disabled 6316 | -8/Garrison | Triggered checkpoint 6414 | -8/Garrison | Discovered new exit (range 14) 6534 | -8/Garrison | Triggered checkpoint 6624 | -8/Garrison | Discovered new exit (range 5) 6664 | -8/Garrison | Triggered checkpoint 6707 | -8/Garrison | Garrison Relay disabled 6724 | -8/Garrison | Triggered checkpoint 6752 | -8/Garrison | Discovered new exit (range 5) 6760 | -8/Garrison | Entered Materials 7125 | -8/Materials | Discovered exit to Factory (range 9) 7160 | -8/Materials | First assault squad dispatched 7232 | -8/Materials | Entered Factory 7232 | -7/Factory | Evolved 2 slots: Utility x2 7234 | -7/Factory | FarCom data flow suspended 7259 | -7/Factory | Identified exit to Lower Caves 7259 | -7/Factory | Identified exit to Factory 7358 | -7/Factory | Fabricated Cld. Pulse Rifle (x1) 7641 | -7/Factory | Build established: Hacker-Tank 8190 | -7/Factory | Repaired Imp. Medium Armor Plating 8344 | -7/Factory | Build established: Hacker-Skirmisher 8429 | -7/Factory | Learned location of 2 exits from Factory 8464 | -7/Factory | Learned Hub_04(d) emergency access door positions 8513 | -7/Factory | Learned location of Lower Caves (-7) 8514 | -7/Factory | Learned Extension garrison access intel 8515 | -7/Factory | Learned Hub_04(d) trap positions 8536 | -7/Factory | Learned location of Warlord (-5) 8543 | -7/Factory | Entered Lower Caves 8544 | -7/Lower Caves | Identified exit to Lower Caves 8544 | -7/Lower Caves | Firepult stolen by Master Thief 8545 | -7/Lower Caves | Encountered a Master Thief 8545 | -7/Lower Caves | Encountered a Master Thief 8549 | -7/Lower Caves | Exp. Sensor Array stolen by Master Thief 8555 | -7/Lower Caves | Encountered a Master Thief 8560 | -7/Lower Caves | Met a Warlord Commander 8562 | -7/Lower Caves | Warlord Commander delivered Encrypted Comm Array 8564 | -7/Lower Caves | Found Encrypted Comm Array 8666 | -7/Lower Caves | Learned Factory garrison access intel 8731 | -7/Lower Caves | Encountered a Warlord checkpoint 9114 | -7/Lower Caves | Attracted the attention of an 0b10 base 9146 | -7/Lower Caves | Learned location of 2 exits from Lower Caves 9146 | -7/Lower Caves | Learned 6 Upper Caves zone layouts 9146 | -7/Lower Caves | Learned Research trap positions 9152 | -7/Lower Caves | Destroyed 7 combat bots 9412 | -7/Lower Caves | Entered another Lower Caves area 9413 | -7/Lower Caves | Identified exit to Zion 9413 | -7/Lower Caves | Encrypted Comm Array stolen by Master Thief 9414 | -7/Lower Caves | Encountered a Master Thief 9414 | -7/Lower Caves | Encountered a Master Thief 9417 | -7/Lower Caves | Imp. Particle Charger stolen by Master Thief 9700 | -7/Lower Caves | Build established: Hacker-Tank 10031 | -7/Lower Caves | Learned Factory trap positions 10142 | -7/Lower Caves | Found Imp. Powered Armor 10152 | -7/Lower Caves | Entered Zion 10212 | -7/Zion | System corruption cleaned by Quarantine Array 10238 | -7/Zion | Gained Derelict followers 10330 | -7/Zion | Discovered new exit (range 15) 10352 | -7/Zion | Identified exit to Proximity Caves 10472 | -7/Zion | Found Prototype Processor 10472 | -7/Zion | Identified Spectral Analyzer 10476 | -7/Zion | Found Prototype Processor 10476 | -7/Zion | Identified Exp. Signal Interpreter 10481 | -7/Zion | Found Prototype Processor 10481 | -7/Zion | Identified Exp. Terrain Scan Processor 10530 | -7/Zion | Learned Factory garrison access intel 10681 | -7/Zion | Found Prototype Special Weapon 10681 | -7/Zion | Identified RU-N14's Throwing Claymores 10781 | -7/Zion | Build established: Skirmisher 10851 | -7/Zion | Met Imprinter 10914 | -7/Zion | Given the Hacking Drone Bay 10915 | -7/Zion | Found Prototype Device 11032 | -7/Zion | Loaded intel: 4 derelict terminal locations 11148 | -7/Zion | Found Prototype Launcher 11148 | -7/Zion | Identified Gui. Missile Launcher 11217 | -7/Zion | Build established: Tank 11280 | -7/Zion | Found Prototype Device 11403 | -7/Zion | Found Prototype Processor 11403 | -7/Zion | Identified Exp. Melee Analysis Suite 11407 | -7/Zion | Found Prototype Processor 11407 | -7/Zion | Identified Exp. Core Analyzer 11586 | -7/Zion | Entered Proximity Caves 11586 | -6/Proximity Caves | Accompanied by 4 allies 11682 | -6/Proximity Caves | Build established: Gunner 11845 | -6/Proximity Caves | Learned Factory emergency access door positions 12193 | -6/Proximity Caves | Discovered exit to Factory (range 9) 12197 | -6/Proximity Caves | Learned location of 1 exit from Proximity Caves 12244 | -6/Proximity Caves | Received a Behemoth hack from an annoying Tinkerer 12261 | -6/Proximity Caves | Entered Factory 12261 | -6/Factory | Accompanied by 1 ally 12261 | -6/Factory | Evolved 2 slots: Utility x2 12262 | -6/Factory | Identified exit to Lower Caves 12263 | -6/Factory | Identified exit to Factory 12263 | -6/Factory | Identified Phasing AFG 12264 | -6/Factory | Loaded intel: 128 trap records 12266 | -6/Factory | Loaded intel: 3 garrison access locations 12272 | -6/Factory | Identified Hacking Drone Bay 12698 | -6/Factory | Build established: Skirmisher 12710 | -6/Factory | Fabricated Hcp. Storage Unit (x1) 13042 | -6/Factory | Entered Lower Caves 13438 | -6/Lower Caves | Identified exit to Lower Caves 13517 | -6/Lower Caves | Learned location of Extension (-5) 14084 | -6/Lower Caves | Entered another Lower Caves area 14144 | -6/Lower Caves | Encountered a Warlord checkpoint 14155 | -6/Lower Caves | Attacked by a delusional Derelict stockpiling parts 14187 | -6/Lower Caves | Discovered exit to Factory (range 20) 14240 | -6/Lower Caves | Learned Factory stockpile data 15022 | -6/Lower Caves | Discovered new exit (range 20) 15062 | -6/Lower Caves | Identified exit to Data Miner 15256 | -6/Lower Caves | Entered Data Miner 15258 | -6/Data Miner | Discovered new exit (range 6) 15269 | -6/Data Miner | Identified exit to Proximity Caves 15290 | -6/Data Miner | Met Data Miner 15321 | -6/Data Miner | Learned location of Section 7 (-3) 15321 | -6/Data Miner | Acquired the access code to Warlord's prototype stash 15350 | -6/Data Miner | Received God Mode back door access code from Data Miner 15412 | -6/Data Miner | Entered Proximity Caves 15423 | -5/Proximity Caves | Spotted B-75 Beast 15558 | -5/Proximity Caves | Attracted the attention of an 0b10 checkpoint 16013 | -5/Proximity Caves | Entered Factory 16013 | -5/Factory | Evolved 2 slots: Power x1, Utility x1 16014 | -5/Factory | Identified exit to Upper Caves 16015 | -5/Factory | Discovered exit to Upper Caves (range 19) 16016 | -5/Factory | Loaded intel: 4 garrison access locations 16319 | -5/Factory | Lost 3 parts (1p1n1w) 16352 | -5/Factory | Destroyed 7 combat bots 16390 | -5/Factory | Entered Upper Caves 16391 | -5/Upper Caves | Identified exit to Upper Caves 17380 | -5/Upper Caves | Attracted the attention of an 0b10 checkpoint 17453 | -5/Upper Caves | Learned location of Armory (-4) 17546 | -5/Upper Caves | Entered another Upper Caves area 17638 | -5/Upper Caves | Spotted B-75 Beast 17659 | -5/Upper Caves | Destroyed B-75 Beast 17976 | -5/Upper Caves | Discovered new exit (range 20) 17986 | -5/Upper Caves | Encountered a Master Thief 17987 | -5/Upper Caves | Encountered a Master Thief 17987 | -5/Upper Caves | Encountered a Master Thief 17988 | -5/Upper Caves | Encountered a Master Thief 17989 | -5/Upper Caves | Adv. Terrain Scanner stolen by Master Thief 17992 | -5/Upper Caves | Adv. Force Field stolen by Master Thief 18028 | -5/Upper Caves | Lost 5 parts (1p3u1w) 18200 | -5/Upper Caves | Entered Warlord 18259 | -5/Warlord | System corruption cleaned by Quarantine Array 18295 | -5/Warlord | Discovered new exit (range 12) 18323 | -5/Warlord | Build established: Tank 18480 | -5/Warlord | Found Prototype Device 18480 | -5/Warlord | Identified Wardrone Bay 19049 | -5/Warlord | Opened Warlord's prototype stash 19057 | -5/Warlord | Found Prototype Reactor 19057 | -5/Warlord | Identified Vortex Chain Reactor 19070 | -5/Warlord | Warlord's base attacked by MAIN.C 19071 | -5/Warlord | Found Prototype Processor 19071 | -5/Warlord | Identified Exp. Targeting Computer 19083 | -5/Warlord | Found Prototype Device 19083 | -5/Warlord | Identified System Purifier 19420 | -5/Warlord | Warlord forces counterattacked 19425 | -5/Warlord | Found Prototype Piercing Weapon 19426 | -5/Warlord | Identified Vortex Lance 19599 | -5/Warlord | Build established: Commander-Tank 19745 | -5/Warlord | Warlord base infiltrated, sounded retreat 19781 | -5/Warlord | Met Warlord 19850 | -5/Warlord | Spotted Executioner 19871 | -5/Warlord | P-70 Sage assimilated allied Archangel 6a 19899 | -5/Warlord | Lost 4 allies 20012 | -5/Warlord | Lost 3 parts (1n2u) 20110 | -5/Warlord | Entered Proximity Caves 20206 | -4/Proximity Caves | Spotter reported a threat 20259 | -4/Proximity Caves | Spotter reported a threat 20280 | -4/Proximity Caves | Spotter reported a threat 20308 | -4/Proximity Caves | Build established: Scavenger-Tank 20315 | -4/Proximity Caves | Spotter reported a threat 20333 | -4/Proximity Caves | Spotter reported a threat 20418 | -4/Proximity Caves | Attracted the attention of an 0b10 outpost 20461 | -4/Proximity Caves | Learned 8 Research zone layouts 20646 | -4/Proximity Caves | Spotter reported a threat 20743 | -4/Proximity Caves | Spotter reported a threat 20925 | -4/Proximity Caves | Discovered new exit (range 10) 20941 | -4/Proximity Caves | Entered Factory 20941 | -4/Factory | Evolved 2 slots: Utility x2 21011 | -4/Factory | Identified exit to DSF 21013 | -4/Factory | Entered DSF 21056 | -4/DSF | Additional patrols routed to DSF 21151 | -4/DSF | Lost 7 parts (6u1w) 21196 | -4/DSF | Lost 3 parts (1u2w) 21304 | -4/DSF | Sterilization system engaged 21324 | -4/DSF | Ambient heat levels rising (+10) 21339 | -4/DSF | Ambient heat levels rising (+10) 21350 | -4/DSF | Discovered new exit (range 14) 21354 | -4/DSF | Ambient heat levels rising (+10) 21369 | -4/DSF | Ambient heat levels rising (+10) 21384 | -4/DSF | Ambient heat levels rising (+10) 21399 | -4/DSF | Ambient heat levels rising (+10) 21414 | -4/DSF | Ambient heat levels rising (+10) 21429 | -4/DSF | Ambient heat levels rising (+10) 21444 | -4/DSF | Ambient heat levels rising (+10) 21459 | -4/DSF | Ambient heat levels rising (+10) 21474 | -4/DSF | Ambient heat levels rising (+10) 21479 | -4/DSF | Entered Research 21479 | -3/Research | Evolved 2 slots: Propulsion x2 21481 | -3/Research | Loaded intel: 88 trap records 21729 | -3/Research | Search patrols dispatched 21992 | -3/Research | Identified exit to Quarantine 22074 | -3/Research | Central database locked down 22265 | -3/Research | Cargo convoy interrupted 22293 | -3/Research | Incoming assault squad redirected 22454 | -3/Research | System corruption reached 10% 22610 | -3/Research | Entered Quarantine 22791 | -3/Quarantine | Build established: Scavenger-Gunner 23037 | -3/Quarantine | Found Alien Artifact 23037 | -3/Quarantine | Identified Terrabomb 23037 | -3/Quarantine | Used Terrabomb 23059 | -3/Quarantine | Scanned by Researcher 23079 | -3/Quarantine | Found Alien Artifact 23079 | -3/Quarantine | Identified Phase Redirector 23101 | -3/Quarantine | Found Terrabomb 23107 | -3/Quarantine | Found Terrabomb 23376 | -3/Quarantine | Build established: Gunner 23648 | -3/Quarantine | Cryocooling Duct disabled 23663 | -3/Quarantine | Ambient heat levels rising (+20) 23663 | -3/Quarantine | Non-combat units ordered to evacuate 23681 | -3/Quarantine | Build established: Tank 23966 | -3/Quarantine | Found Alien Impact Weapon 23966 | -3/Quarantine | Identified Core Stripper 24047 | -3/Quarantine | Found Alien Artifact 24049 | -3/Quarantine | Identified Subatomic Replicator 24049 | -3/Quarantine | Used Subatomic Replicator to replicate Nova Cannon+ 24179 | -3/Quarantine | Discovered new exit (range 8) 24189 | -3/Quarantine | Identified exit to Research 24348 | -3/Quarantine | Entered Research 24348 | -2/Research | Warlord forces began assault on 0b10 24348 | -2/Research | Evolved 2 slots: Utility x2 24373 | -2/Research | Distinguished unit "Magnificent Bastards" dispatched to help 24373 | -2/Research | Distinguished unit "Death Star" dispatched to help 24458 | -2/Research | Research machine network offline 24575 | -2/Research | Discovered new exit (range 11) 24592 | -2/Research | Identified exit to Testing 24638 | -2/Research | Build established: Scavenger-Tank 24665 | -2/Research | Spotted B-90 Cyclops 24671 | -2/Research | Destroyed B-90 Cyclops 25201 | -2/Research | Borebot progress halted 25276 | -2/Research | Borebot progress halted 25372 | -2/Research | Borebot progress halted 25415 | -2/Research | Spotted Executioner 25415 | -2/Research | Spotted Executioner 25417 | -2/Research | Spotted Executioner 25454 | -2/Research | Lost 4 allies 25519 | -2/Research | Lost 3 allies 25611 | -2/Research | Found Prototype Device 25611 | -2/Research | Identified Adv. Kinecellerator 25850 | -2/Research | Given Cave Seal Controls access code 25886 | -2/Research | Build established: Scavenger-Gunner 25906 | -2/Research | Entered Testing 25980 | -2/Testing | Found Prototype Protection 25980 | -2/Testing | Identified Med. Regenerative Plating 25985 | -2/Testing | Found Prototype Protection 25985 | -2/Testing | Identified SHELL Armor 26064 | -2/Testing | Lost 7 allies 26222 | -2/Testing | Destroyed 7 combat bots 26276 | -2/Testing | Build established: Scavenger-Tank 26380 | -2/Testing | Found Prototype Reactor 26380 | -2/Testing | Identified Zero-point Reactor 26450 | -2/Testing | Discovered new exit (range 3) 26452 | -2/Testing | Identified exit to Access 26825 | -2/Testing | Build established: Scavenger-Gunner 27011 | -2/Testing | Found Prototype Launcher 27011 | -2/Testing | Identified Hellfire Missile Launcher 27021 | -2/Testing | Found Hellfire Missile Launcher 27064 | -2/Testing | Found Prototype Leg 27064 | -2/Testing | Identified Myomer Exoskeleton 27156 | -2/Testing | First assault squad dispatched 27191 | -2/Testing | Entered Access 27191 | -1/Access | Evolved 2 slots: Power x1, Utility x1 27325 | -1/Access | Build established: Scavenger-Tank 27327 | -1/Access | Lost 4 allies 27341 | -1/Access | Garrison activated, responded to threat 28357 | -1/Access | System corruption reached 10% 28514 | -1/Access | Build established: Scavenger-Skirmisher 28642 | -1/Access | Found Prototype Launcher 28642 | -1/Access | Identified Enh. Gamma Bomb Array 28691 | -1/Access | First assault squad dispatched 28769 | -1/Access | Discovered new exit (range 8) 28781 | -1/Access | Identified exit to Command 29052 | -1/Access | Entered Command 29237 | -1/Command | Disengaged cave seal 29237 | -1/Command | Derelicts emerged from the dark tunnel 29238 | -1/Command | Welcomed Warlord to Command 29302 | -1/Command | First assault squad dispatched 29435 | -1/Command | Lost 11 allies 29502 | -1/Command | Warlord commented on Warlord statues 29504 | -1/Command | Spotted M Guard 29504 | -1/Command | Spotted M Guard 29505 | -1/Command | Spotted Combat Programmer 29506 | -1/Command | Spotted Combat Programmer 29554 | -1/Command | All MAIN.C guards destroyed 29566 | -1/Command | Found Prototype Device 29566 | -1/Command | Identified AEGIS Remote Shield 29575 | -1/Command | Lost 14 allies 29617 | -1/Command | Met MAIN.C 29624 | -1/Command | Warlord shut down involuntarily 29652 | -1/Command | 0b10 Conduit disabled 29653 | -1/Command | MAIN.C activated Command garrisons 29772 | -1/Command | Core integrity fell below 50% 29773 | -1/Command | Used Terrabomb 29774 | -1/Command | Core integrity fell below 20% 29774 | -1/Command | Destroyed by H-88 Terminator with KE Penetrator Last Messages --------------- (Destroy). 29771_ P-80 Master destroyed. 29771_ Slug penetrates Wall. 29772_ C-45 Heavy ARC bursts open, deploying its payload. 29772_ H-88 Terminator unfolds itself. 29772_ P-80 Master resets P-80 Master, system corruption cleaned. 29773_ Slug penetrates S-43 Plague. 29773_ Penetrated by Slug. 29773_ Slug penetrates P-80 Master. 29773_ P-80 Master destroyed. 29773_ Penetrated by Slug. 29773_ Slug penetrates H-88 Terminator. 29773_ Penetrated by Slug. 29773_ Slug penetrates Earth. 29773_ Terrabomb activated. 29773_ P-80 Master resets S-43 Plague, system corruption cleaned. 29774_ Penetrated by Slug. Map ----- +----------------------------------------------------+ | ???????????????????????????????????????????### ## | | ?????????????????????????????????????????????# ## | | ?????????????????????????????????????????????# + | | ?????????????????????????????????????????????# # | | ?????????????????????????????????????????????# # | | ?????????????????????????????????????????????# + | | ?????????????????????????????????????????????#### | | ????????????????????????????????????????????????# | | ????????????????????????????????????????????????## | | ?????????????????????????????????????????????????? | | ??????????????????????? ; ?????????????????????? | | ????????????????????? ;p ; ???????????????????? | | ?????????????????? ;p ; ????????????????? | | ????????????????;; ; ; ??????????????? | | ?????????????? ; ; ;x g; ????????????? | | ##############;;;;;; ;e p; ????????????? | | % ; ; hg; ???????????? | | ; ;pp ; ???????????? | | % ; ;px ; ??????????? | | ##############;; ; ; ; ??????????? | | ???????????? ; ; ;ggx; ??????????? | | ???????????;;;;; ;; ; ; ; ;;;;; #####????? | | ??????????? ; T; ; ; ; # #????? | | ?????????? ;/p/l;;!!! W W ;;; ###### | | ?????????? ; s %p%=! %% + | | ?????????? ; x= !=c@ [ R + | | ?????????? ; =% s h + | | ?????????? ; x hh %h ! % + | | ??????????? ; h % x + | | ??????????? ; ; !e! W W ;;# #####+ | | ???????????? ;;;;;; ;hs! ;?# #??? | | ???????????? %!!; ;;;;?#####??# | | ???????????? ;hhh; ????????# | | ????????????? *%[ ; ?????????#= | | ????????????? ==! hl ?????????# | | ?????????????? ;[ h; ??????????# | | ?????????????? ;p[!= ??????????# | | ???????????????? d==%! ????????????# | | ?????????????????? ;%eh; ??????????????# | | ????????????????????? ;% ; ?????????????????# | | ??????????????????????#% h; ???????????????????# | | ??????????????????????# ?????????????????????? | | ??????????????????????# ??????????????????????#+ | | ????????????????????????????????????????????????? | | ?????????????????????????????????????????????????? | | ?????????????????????????????????????????????????? | | ?????????????????????????????????????????????????? | | ?????????????????????????????????????????????????? | | ?????????????????????????????????????????????????? | | ?????????????????????????????????????????????????? | +----------------------------------------------------+ Best States ------------- Heat Dissipation 187 Energy Generation 90 Energy Capacity 720 Matter Stores 300 Matter Capacity 300 Sight Range 24 Robot Scan Range 20 Terrain Scan Range 20 Terrain Scan Density 1010 Jamming Range 16 Power Amplification 30 Armor Coverage 1800 Resistance: TH 30 Point Defense Rating 240 Weapon Cycling 25 Phase Shifting 15 Evasion (%) 55 Targeting Accuracy 12 Melee Accuracy 8 Target Analysis 8 Core Analysis 8 Armor Integrity Analysis 40 Recoil Reduction 6 Energy Filtering 50 Particle Charging 20 Offensive Hacking 10 Defensive Hacking 12 Authchip Count 1 Item Schematics ----------------- Cld. Pulse Rifle | -7/Factory | Hacked Hcp. Storage Unit | -7/Factory | Hacked Combat Drone Bay | -6/Data Miner | Free Lgt. Regenerative Plating | -6/Data Miner | Free Cld. Gravmag System | -6/Data Miner | Free Prc. Matter Filter | -6/Data Miner | Free Imp. KE Penetrator | -6/Data Miner | Free Centrium Wheel | -6/Data Miner | Free Imp. Force Booster | -6/Data Miner | Free Phase Gun | -6/Data Miner | Free Tesla Rifle | -6/Data Miner | Free Hvy. Gauss Cannon | -6/Data Miner | Free Impulse Thruster Array | -6/Data Miner | Free Cld. Field Propulsion Drive | -2/Testing | Archive Exp. Gyrokinetic Inverter | -2/Testing | Archive Exp. Focal Shield | -2/Testing | Archive Centrium Light Armor Plating | -2/Testing | Archive Exp. Reaction Control System | -2/Testing | Archive Cld. Phase Cannon | -2/Testing | Archive Thermal Barrier | -2/Testing | Archive Exp. Cloaking Device | -2/Testing | Archive Robot Schematics ------------------ B-60 Warrior | -6/Data Miner | Free A-15 Conveyor | -6/Data Miner | Free S-27 Virus | -6/Data Miner | Free L-41 Fighter | -6/Data Miner | Free X-72 Disruptor | -6/Data Miner | Free Y-64 Sentinel | -6/Data Miner | Free K-01 Serf | -2/Testing | Archive Fabricated ------------ Cld. Pulse Rifle | x1 | -7/Factory Hcp. Storage Unit | x1 | -6/Factory Repaired ---------- Lgt. Treads | 25% | -10/Materials Lgt. Treads | 12% | -9/Materials Lgt. Treads | 16% | -9/Materials Lgt. Treads | 44% | -9/Materials Lgt. Treads | 69% | -9/Materials Imp. Medium Armor Plating | 71% | -7/Factory Studied --------- Mni. Grenade Launcher | -9/Materials | Hacked Hvy. Assault Rifle | -9/Materials | Hacked Beam Rifle | -9/Materials | Hacked Particle Cannon | -9/Materials | Hacked Nova Cannon | -3/Research | Hacked Com. HERF Cannon | -3/Quarantine | Hacked Alien Tech Used ----------------- Terrabomb Phase Redirector Core Stripper Subatomic Replicator Achievements -------------- Off Switch Challenges ------------ None Game ------ Seed WarpTransmissionRailgun Manual? 0 Play Time 04:15:32 Cumulative 237.7 hours Start 2025.12.12 @ 16:07:43 End 2025.12.12 @ 20:48:30 Sessions 1 Manual Loads 0 Difficulty Rogue Special Mode None Game No. 159 Rogue 159 Adventurer 0 Explorer 0 Win Type - Total 7 Types 5/0/1/1/0/0/0/0/0/0 Lore% 86 Gallery% 77 Achievement% 61 Wizard Run 0 Options --------- Layout 1 ASCII 0 Keyboard 0 Movement Mouse Keybinds 0 Fullscreen 2 Font 24/Smallcaps Map View 50x35 Zoom Use 0% Tactical HUD 1 Map Filters NONE Filters NONE Steam 1 RUN: 7813f0eb-23f2-4999-a05a-87c086566425